Cogmind - Beta 13 --- EXPLORER MODE // 2024.03.18 @ 22:12:59 // Winter2019/RPGLIKE Player: H3-RMN Result: Escaped! Performance ------------- Evolutions (9) 4500 Regions Visited (29) 5800 Robots Destroyed (1118) 5590 Value Destroyed (64264) 64264 Prototype IDs (134) 2680 Alien Tech Used (0) 0 Bonus (57171) 57171 TOTAL SCORE: 140005 Bonus ------- Triggered High Security 1000 Triggered Max Security 1000 High Alert Combat Kills 41921 Follower Combat Kills 1951 Entered Garrisons 1200 Used RIF Installer 3500 Network Hubs Disabled 800 Aligned with FarCom 300 A7 Reached Mainframe 300 Met R17 at Cetus 500 Met R17 at Research 2000 Scanned by Researcher 500 Acquired SGEMP 2000 Win 3000 Friendly Fire -2801 Cogmind --------- Core Integrity 1800/1800 Matter 270/300 Energy 6316/6320 System Corruption 0% Temperature Cool (0) Movement Rolling (130) Ox2 Location To Epsilon Eridani Parts ------- > --- POWER (10) ------- Hybrid Antimatter Reactor Hybrid Antimatter Reactor Hybrid Antimatter Reactor Hybrid Antimatter Reactor Hybrid Antimatter Reactor Cooled Antimatter Reactor Light Quantum Reactor Improved Quantum Reactor Vortex Chain Reactor > --- PROPULSION (4) --- High-density Centrium Wheel High-density Centrium Wheel High-density Centrium Wheel High-density Centrium Wheel > --- UTILITY (7) ------ Long-range Terrain Scanner Launcher Loader Experimental Phase Shifter Advanced Powered Armor Experimental EM Disruption Field Advanced Force Field > --- WEAPON (5) ------- Advanced Variable Charge Gun EMDS Omega Cannon > --- INVENTORY (8) ---- YI-UF0's Bottomless Matter Pit (1500) Precision Matter Filter Advanced Weapon Cycler Hypervelocity EM Gauss Rifle Disintegrator Neutron Missile Launcher Fusion Bomb Launcher Peak State ------------ > --- POWER ------------ Hybrid Antimatter Reactor Hybrid Antimatter Reactor Hybrid Antimatter Reactor Hybrid Antimatter Reactor Hybrid Antimatter Reactor Cooled Antimatter Reactor Light Quantum Reactor Improved Quantum Reactor Vortex Chain Reactor > --- PROPULSION ------- High-density Centrium Wheel High-density Centrium Wheel High-density Centrium Wheel High-density Centrium Wheel > --- UTILITY ---------- Long-range Terrain Scanner Launcher Loader Experimental Phase Shifter Advanced Powered Armor Experimental EM Disruption Field Advanced Force Field > --- WEAPON ----------- EMDS Omega Cannon Neutron Missile Launcher > --- INVENTORY -------- YI-UF0's Bottomless Matter Pit Precision Matter Filter Advanced Weapon Cycler Hypervelocity EM Gauss Rifle Advanced Variable Charge Gun Disintegrator Fusion Bomb Launcher [Rating: 232] Favorites ----------- Power Hybrid Antimatter Reactor Engine Improved Deuterium Engine Power Core Nuclear Core Reactor Hybrid Antimatter Reactor Propulsion Centrium Wheel Wheel Centrium Wheel Utility Relay Coupler [NC] Device Advanced Force Field Storage YI-UF0's Bottomless Matter Pit Processor Advanced Corruption Screen Hackware Relay Coupler [NC] Protection Powered Armor Weapon Compact HERF Cannon Energy Gun Advanced Variable Charge Gun Energy Cannon Compact HERF Cannon Ballistic Gun Autogun Ballistic Cannon Omega Cannon Launcher Heavy Shock Bomb Launcher Special Weapon Plasma Cutter Special Melee Weapon Improved Datajack Build | -11 -10 -10 -9 -9 -9 -8 -8 -8 -8 -8 -7 -7 -7 -7 -6 -6 -6 -6 -5 -5 -4 -4 -4 -4 -4 -3 -3 -2 -1 ------- Run | Yrd Mat Min Mat Min Exi Min Mat Gar Mat Gar Fac Was Fac Gar Fac Gar Fac Gar Fac Gar Fac Ext Cet Arc Hub Res Tes Res Acc Slots Evolved 22 | 6 1 . 4 . . . 2 1 . 1 . . . . 2 . 1 . 1 . 2 . . . 1 . . . . Power 9 | 1 . . 2 . . . 2 . . 1 . . . . 1 . 1 . 1 . . . . . . . . . . Propulsion 3 | 1 . . 1 . . . . . . . . . . . 1 . . . . . . . . . . . . . . Utility 6 | 3 . . . . . . . 1 . . . . . . . . . . . . 2 . . . . . . . . Weapon 4 | 1 1 . 1 . . . . . . . . . . . . . . . . . . . . . 1 . . . . Parts Attached 355 | 9 9 2 20 6 1 1 17 6 . 5 4 2 20 7 34 11 29 4 23 7 26 9 4 . 13 8 28 27 23 Power 76 | . 2 . 6 1 . . 6 2 . . 1 . 5 2 10 1 7 . 7 . 2 . . . . . 2 14 8 Engine 18 | . 2 . 4 1 . . 5 1 . . 1 . 3 . . . 1 . . . . . . . . . . . . Core 11 | . . . 2 . . . 1 1 . . . . 1 1 1 . 2 . 2 . . . . . . . . . . Reactor 47 | . . . . . . . . . . . . . 1 1 9 1 4 . 5 . 2 . . . . . 2 14 8 Propulsion 21 | 1 1 . 3 . . . . . . . 1 . . . 1 . . . . . 4 . . . 1 . 3 2 4 Treads . | . . . . . . . . . . . . . . . . . . . . . . . . . . . . . . Leg . | . . . . . . . . . . . . . . . . . . . . . . . . . . . . . . Wheel 21 | 1 1 . 3 . . . . . . . 1 . . . 1 . . . . . 4 . . . 1 . 3 2 4 Hover . | . . . . . . . . . . . . . . . . . . . . . . . . . . . . . . Flight . | . . . . . . . . . . . . . . . . . . . . . . . . . . . . . . Utility 143 | 5 1 . 5 3 . 1 6 3 . 5 2 1 7 3 12 9 15 2 8 3 9 2 2 . 4 7 14 5 9 Device 99 | 2 1 . 3 2 . . 5 2 . 4 2 . 4 2 10 5 12 . 7 1 8 2 . . 4 5 9 4 5 Storage 6 | . . . . . . 1 . . . . . . . . 1 . . 1 1 . . . . . . . 1 . 1 Processor 4 | 1 . . . . . . . . . . . . 1 . . 1 1 . . . . . . . . . . . . Hackware 12 | . . . 2 . . . . 1 . 1 . 1 . 1 . 2 2 . . 2 . . . . . . . . . Protection 22 | 2 . . . 1 . . 1 . . . . . 2 . 1 1 . 1 . . 1 . 2 . . 2 4 1 3 Artifact . | . . . . . . . . . . . . . . . . . . . . . . . . . . . . . . Weapon 115 | 3 5 2 6 2 1 . 5 1 . . . 1 8 2 11 1 7 2 8 4 11 7 2 . 8 1 9 6 2 Energy Gun 27 | 1 1 . 2 1 . . 1 . . . . . 2 . 1 . 2 1 4 2 2 . . . 2 . 3 1 1 Energy Cannon 32 | . . . . . . . 1 . . . . 1 3 1 3 1 3 . 2 1 6 4 1 . 2 . 1 1 1 Ballistic Gun 8 | 2 3 1 1 . . . . . . . . . 1 . . . . . . . . . . . . . . . . Ballistic Cannon 4 | . . . . . . . . . . . . . . . 1 . . . . . 1 . . . . . 1 1 . Launcher 22 | . . 1 3 . 1 . . 1 . . . . 2 . 3 . 2 . 2 . 1 . . . 1 . 2 3 . Special Weapon 7 | . . . . . . . . . . . . . . 1 . . . . . . . . 1 . 3 . 2 . . Impact Weapon . | . . . . . . . . . . . . . . . . . . . . . . . . . . . . . . Slashing Weapon . | . . . . . . . . . . . . . . . . . . . . . . . . . . . . . . Piercing Weapon . | . . . . . . . . . . . . . . . . . . . . . . . . . . . . . . Special Melee Weapon 15 | . 1 . . 1 . . 3 . . . . . . . 3 . . 1 . 1 1 3 . . . 1 . . . Unidentified Prototypes 44 | . . . . . . . . . . . . . 6 . 6 . 6 . 1 . 5 . 1 . 3 2 9 2 3 Corrupted Parts 1 | . . . . . . 1 . . . . . . . . . . . . . . . . . . . . . . . System Corruption 3 | . . . . . . 3 . . . . . . . . . . . . . . . . . . . . . . . Parts Lost 10 | . . . . . . . . 1 . . . . 1 . . . . . 1 . . . . . . 1 1 3 2 Power 9 | . . . . . . . . 1 . . . . 1 . . . . . 1 . . . . . . . 1 3 2 Propulsion . | . . . . . . . . . . . . . . . . . . . . . . . . . . . . . . Utility 1 | . . . . . . . . . . . . . . . . . . . . . . . . . . 1 . . . Weapon . | . . . . . . . . . . . . . . . . . . . . . . . . . . . . . . Highest Loss Streak 1 | . . . . . . . . 1 . . . . 1 . . . . . 1 . . . . . . 1 1 1 1 To Critical Strikes 1 | . . . . . . . . . . . . . . . . . . . . . . . . . . . . 1 . Average Slot Usage (%) 93 | . 96 100 98 100 100 100 98 99 100 98 96 93 91 94 90 89 88 89 90 91 96 95 96 96 95 95 87 87 84 Engine 5 | . 17 18 4 13 13 13 15 19 16 15 19 21 22 17 1 . 1 4 2 . . . . . . . . . . Core 6 | . . . 15 13 13 13 16 13 16 15 15 15 10 8 5 4 4 9 11 4 2 . . . . . . . . Reactor 22 | . . . . . . . . . . . . . . 8 27 32 30 27 26 39 38 40 40 40 39 38 33 33 33 Wheel 13 | . 19 18 16 20 20 20 17 16 16 15 13 10 10 10 9 9 9 9 8 8 13 16 16 16 15 15 14 14 15 Device 14 | . 28 27 18 20 20 20 18 17 22 21 21 21 15 10 9 9 8 9 8 8 15 15 16 16 15 14 12 16 18 Processor 2 | . . . . . . . . . . . . . 3 5 4 4 4 4 4 4 4 4 4 4 3 3 3 2 . Hackware 2 | . . . 6 . . . . . . . . 4 5 5 4 4 4 4 4 4 4 4 4 4 3 3 1 . . Protection 4 | . 11 9 8 6 6 6 4 5 5 5 5 . 1 5 4 4 4 3 4 4 4 4 4 4 3 2 2 2 2 Energy Gun 4 | . 1 9 9 13 13 13 11 11 11 10 10 9 4 1 . . . . 2 3 2 . . . 3 3 2 6 . Energy Cannon 4 | . . . . . . . . . . . . . 2 8 9 8 8 9 7 8 7 7 7 8 5 3 2 . 2 Ballistic Gun 1 | . 18 17 13 . . . . . . . . . . . . . . . . . . . . . . . . . . Launcher 4 | . . . 4 7 6 13 5 5 5 5 5 5 7 5 4 4 4 4 3 4 3 4 4 4 1 3 4 3 2 Special Melee Weapon 2 | . . . . 4 6 . 4 5 5 5 5 5 5 1 4 4 4 3 2 . . . . . . 1 . . . Naked Turns . | . . . . . . . . . . . . . . . . . . . . . . . . . . . . . . Heaviest Build 246 | 11 25 25 54 67 67 70 80 93 93 94 102 102 119 139 152 161 178 179 200 181 190 189 189 189 205 213 216 231 246 Greatest Support 80 | 16 26 26 44 44 44 44 44 44 44 44 44 40 40 40 56 56 56 56 56 56 64 64 64 64 64 64 64 64 80 Greatest Overweight (x) 5 | 2 . . 1 1 1 1 1 2 2 2 2 2 2 3 5 2 3 3 3 3 4 2 2 2 3 3 4 5 3 Average Overweight (x) 2 | . . . . 1 1 1 1 1 2 2 2 2 1 2 2 2 2 2 2 3 2 2 2 2 2 3 2 2 2 Largest Inventory Capacity 8 | 2 2 3 4 4 4 5 5 6 6 6 6 6 6 7 7 7 7 7 7 7 7 7 7 7 7 8 8 8 8 Average Capacity 6 | 1 2 2 3 4 4 4 5 5 6 6 6 6 6 6 7 7 7 7 7 7 7 7 7 7 7 7 8 8 8 Most Carried 8 | 2 2 3 4 4 4 5 5 6 6 6 6 6 6 7 7 7 7 7 7 7 7 7 7 7 7 8 8 8 8 Average Carried 6 | . 1 2 3 3 4 4 4 5 6 6 6 6 5 6 6 6 6 7 6 7 6 7 7 7 6 7 7 7 7 Final Capacity 8 | 2 2 3 4 4 4 5 5 6 6 6 6 6 6 7 7 7 7 7 7 7 7 7 7 7 7 8 8 8 8 Final Carried 8 | 1 2 3 4 4 4 5 5 6 6 6 6 6 6 7 6 7 7 7 7 7 7 7 7 7 7 8 8 8 8 Class Distribution -------------------- 41% | Wizard-Tank 17% | Wizard-Skirmisher 14% | Wizard-Assassin 10% | Hacker-Assassin 7% | Hacker-Skirmisher 5% | Hacker-Tank Dominant Class ---------------- Hacker-Mutant | -10/Materials Hacker-Skirmisher | -10/Mines Hacker-Skirmisher | -9/Materials Hacker-Tank | -9/Mines Hacker-Tank | -9/Exiles Hacker-Skirmisher | -8/Mines Hacker-Assassin | -8/Materials Hacker-Assassin | -8/Garrison Hacker-Assassin | -8/Materials Hacker-Assassin | -8/Garrison Wizard-Assassin | -7/Factory Wizard-Assassin | -7/Waste Wizard-Assassin | -7/Factory Wizard-Tank | -7/Garrison Wizard-Assassin | -6/Factory Wizard-Tank | -6/Garrison Wizard-Tank | -6/Factory Wizard-Tank | -6/Garrison Wizard-Tank | -5/Factory Wizard-Tank | -5/Garrison Wizard-Skirmisher | -4/Factory Wizard-Skirmisher | -4/Extension Wizard-Skirmisher | -4/Cetus Wizard-Skirmisher | -4/Archives Wizard-Skirmisher | -4/Hub_04(d) Wizard-Skirmisher | -3/Research Wizard-Tank | -3/Testing Wizard-Tank | -2/Research Wizard-Tank | -1/Access Resources | -11 -10 -10 -9 -9 -9 -8 -8 -8 -8 -8 -7 -7 -7 -7 -6 -6 -6 -6 -5 -5 -4 -4 -4 -4 -4 -3 -3 -2 -1 ----------- Run | Yrd Mat Min Mat Min Exi Min Mat Gar Mat Gar Fac Was Fac Gar Fac Gar Fac Gar Fac Gar Fac Ext Cet Arc Hub Res Tes Res Acc Matter Collected 20648 | 298 349 53 780 1135 . 435 250 46 68 81 20 30 305 123 413 180 324 51 385 146 502 70 70 . 374 161 3126 4511 6362 Remotely 3228 | 58 349 53 702 1135 . 435 95 46 68 71 20 30 166 . . . . . . . . . . . . . . . . Salvage Created 55967 | 98 682 7 1217 514 . 717 1286 535 1151 853 . . 1198 1055 2731 1923 2867 1313 5512 2794 4999 1154 807 434 2934 334 5666 7358 5828 Parts 2490 | 6 51 3 123 18 . 29 92 50 53 62 . . 59 56 101 114 156 65 237 96 222 37 37 16 127 8 203 266 203 Haulers Intercepted 23 | . 2 . 3 . . . 4 . 3 . . . 1 1 4 . 2 . . . . . . . . 1 . . 2 Recyclers Shooed 11 | . . . . . . . 2 . 1 . . . . . . . 1 . 5 . . . . . . . . 1 1 Parts Field Recycled . | . . . . . . . . . . . . . . . . . . . . . . . . . . . . . . Retrieved Matter . | . . . . . . . . . . . . . . . . . . . . . . . . . . . . . . Parts Self-Destructed . | . . . . . . . . . . . . . . . . . . . . . . . . . . . . . . Prevented . | . . . . . . . . . . . . . . . . . . . . . . . . . . . . . . Kills | -11 -10 -10 -9 -9 -9 -8 -8 -8 -8 -8 -7 -7 -7 -7 -6 -6 -6 -6 -5 -5 -4 -4 -4 -4 -4 -3 -3 -2 -1 ------- Run | Yrd Mat Min Mat Min Exi Min Mat Gar Mat Gar Fac Was Fac Gar Fac Gar Fac Gar Fac Gar Fac Ext Cet Arc Hub Res Tes Res Acc Combat Hostiles Destroyed 1070 | . 17 2 33 3 . 9 22 14 14 22 . . 17 24 35 38 48 21 72 33 69 9 11 4 41 2 164 179 167 Guns 171 | . 17 . 27 3 . 7 14 9 7 13 . . 2 . . . 3 1 14 2 6 1 . . 21 . 18 6 . Cannons 204 | . . . . . . . . . . . . . 1 9 6 18 29 12 12 9 21 1 3 1 6 2 8 22 44 AOE 479 | . . 2 6 . . . 8 4 5 7 . . 6 3 9 7 4 4 14 7 12 . 2 . 3 . 130 146 100 Classes Destroyed 27 | 2 4 . 5 1 . 1 . 2 . 1 . . 1 1 1 . . 1 1 . 1 . . . . . 5 . . Worker 28 | . . . 3 . . 1 . . 2 . . . 1 . 6 . 1 . 8 . 2 . . . 2 . . . 2 Builder 21 | . . . . 1 . . 1 . . . . . . . 1 . 1 . 10 . 2 . . . 1 . . 1 3 Tunneler 11 | 1 . . . 1 . 3 1 . . . . . 1 . . . 1 . . . . . . . . . . . 3 Hauler 23 | . 2 . 3 . . . 4 . 3 . . . 1 1 4 . 2 . . . . . . . . 1 . . 2 Recycler 24 | 1 . . 2 3 . 1 1 . 2 . . . . . . . 1 . 7 . 1 . . . 1 1 . 2 1 Carrier 4 | . . . . . . . . . . . . . . . . . . . . . 1 . . . . . . 1 2 Mechanic 32 | . . . . . . . . . . . . . . . . . . . . . . . . . . . 16 9 7 Operator 11 | . . . 3 . . . . . 1 . . . . . 1 . . . 2 . 2 . . . . . . 1 1 Watcher 26 | . 1 . 4 . . . 2 . 1 . . . 1 . 1 1 1 . 3 . 3 2 2 . 1 . . 3 . Swarmer 96 | . 2 2 5 3 . . 7 3 1 6 . . 2 . 2 10 9 . 3 6 9 . 2 . 3 . 3 9 9 Cutter 2 | . . . . . . . . . . . . . . . . . . 2 . . . . . . . . . . . Saboteur 31 | . . . . . . . . . . . . . . . 1 . . . 1 . 1 . . . . . 7 14 7 Grunt 405 | . 15 . 17 . . 5 10 6 8 12 . . 8 14 12 9 16 6 28 11 22 2 3 . 7 2 49 84 59 Brawler 48 | . . . 1 . . 1 . . . . . . . 2 . . 1 1 5 . . . . . . . 12 12 13 Duelist 53 | . . . 1 . . 2 . . . 1 . . . 3 . . . . 6 . 1 1 . . . . 10 12 16 Protector 37 | . . . . . . . . . . . . . . . . . . . 3 . 1 . . . 4 . 10 7 12 Sentry 107 | . . . 9 . . . 5 3 4 1 . . 2 4 6 9 6 6 5 7 6 4 . 4 7 . . 5 14 Demolisher 1 | . . . . . . . . 1 . . . . . . . . . . . . . . . . . . . . . Specialist 16 | . . . . . . . . . . . . . 1 . 2 . 6 1 1 2 3 . . . . . . . . Hunter 95 | . . . . . . 1 . . 2 . . . 3 . 7 4 2 3 7 5 16 . . . 1 . 26 8 10 Programmer 112 | . . . . . . . . . . 2 . . 1 . 4 3 6 1 11 2 6 . . . 7 . 38 17 14 Heavy 9 | . . . . . . . . . . . . . . 1 . . 2 . 2 . 2 . . . . . . . 2 Behemoth 12 | . . . . . . . . 1 . . . . . . 1 3 . 1 . . 2 2 . . 1 . . 1 . Cetus Guard 6 | . . . . . . . . . . . . . . . . . . . . . . . 6 . . . . . . Lightning 11 | . . . . . . . . . . . . . . . . . . . . . . . . . 11 . . . . Investigator 7 | . . . . . . . . . . . . . . . . . . . . . . . . . . . 1 3 3 Striker 13 | . . . . . . . . . . . . . . . . . . . . . . . . . . . 5 7 1 Executioner 17 | . . . . . . . . . . . . . . . . . . . . . . . . . . . 3 4 10 Alpha 7 1 | . . . . . . . . . . . . . . . . . . . . . . . . . . . 1 . . Protovariant D 1 | . . . . . . . . . . . . . . . . . . . . . . . . . . . 1 . . Best Kill Streak 56 | 1 5 2 5 3 . 4 3 4 5 5 . . 8 9 10 7 6 7 16 6 17 4 4 4 7 3 53 56 26 Combat Bots Only 52 | . 5 2 4 3 . 2 3 4 3 5 . . 5 8 4 7 6 7 12 6 15 4 3 4 6 1 48 52 23 Max Kills in Single Turn 12 | 1 1 1 3 2 . 1 2 2 2 2 . . 3 2 6 2 3 2 4 3 4 1 2 1 2 1 12 9 8 Gunslinging 1 | . . . 1 . . . . . . . . . . . . . . . . . . . . . . . . . . Exploded 9 | . . 1 2 . . . 2 2 1 2 . . 3 1 4 2 3 2 3 3 2 . 2 . 2 . 9 8 5 Melee . | . . . . . . . . . . . . . . . . . . . . . . . . . . . . . . Uniques/NPCs Destroyed 1 | . . . . 1 . . . . . . . . . . . . . . . . . . . . . . . . . YI-UF0 (-9/Mines) Combat | -11 -10 -10 -9 -9 -9 -8 -8 -8 -8 -8 -7 -7 -7 -7 -6 -6 -6 -6 -5 -5 -4 -4 -4 -4 -4 -3 -3 -2 -1 -------- Run | Yrd Mat Min Mat Min Exi Min Mat Gar Mat Gar Fac Was Fac Gar Fac Gar Fac Gar Fac Gar Fac Ext Cet Arc Hub Res Tes Res Acc Hostile Shots Fired 5131 | . 50 2 74 4 . 25 52 59 60 93 . . 171 236 218 287 318 120 336 70 419 48 18 1 269 8 788 868 537 Missed 1676 | . 10 1 21 2 . 4 15 8 11 15 . . 66 80 91 77 94 40 93 18 137 11 2 . 65 2 252 277 284 Damage Taken 17663 | . 318 22 420 55 . 223 175 533 307 544 . . 694 732 933 566 910 311 1425 311 1608 345 132 18 480 35 1690 3433 1443 Core 11560 | . 188 18 297 27 . 139 120 334 198 368 . . 490 443 587 311 535 191 898 205 1008 224 91 14 289 26 1141 2455 963 Absorbed by Shields 15326 | . . . 32 27 . 80 147 197 192 368 . . 286 313 377 706 1030 374 1590 350 1755 362 138 19 522 39 1847 3030 1545 Redirected to Core 10435 | . 150 13 235 27 . 139 111 316 171 327 . . 425 409 516 255 479 162 739 192 932 187 84 14 285 26 1069 2320 852 Ignored by Resistances 44506 | . 203 15 289 49 . 181 201 433 303 544 . . 614 684 885 1239 1834 469 3438 464 2759 412 163 22 5975 44 9640 9199 4447 Regen/Repaired (Parts) 263 | . . . . . . . 3 . . . . . 35 . . . . . . . . . . . . . . . 225 Core Remaining (%) 90 | 100 . 100 . . . 100 . . . 97 . . . 100 . . . 100 . 100 . . . . 96 . 72 29 100 Volleys Fired 2295 | 4 44 15 72 16 . 29 56 54 43 81 . 6 50 40 87 89 89 47 183 59 186 29 19 7 273 10 197 276 234 Largest 3 | 2 2 1 3 2 . 2 2 2 2 2 . 2 2 2 2 2 2 2 2 2 3 2 2 2 2 1 3 3 2 Hottest 320 | 60 60 45 91 100 . 100 105 105 105 105 . 105 136 169 169 175 188 240 240 188 282 188 188 188 188 70 240 320 310 Shots Fired 3496 | 8 88 15 156 29 . 58 96 98 79 159 . 12 73 71 160 167 176 86 274 105 299 58 37 14 320 10 214 357 277 Gun 1504 | 8 88 12 149 29 . 58 90 97 72 156 . 12 39 4 . . 6 8 76 6 44 13 . . 250 . 92 192 3 Cannon 1644 | . . . . . . . . . . . . . 21 58 151 157 168 75 172 92 229 45 36 14 66 10 68 89 193 Launcher 344 | . . 3 7 . . . 6 1 7 3 . . 13 9 9 10 2 3 26 7 26 . 1 . 4 . 50 76 81 Special 4 | . . . . . . . . . . . . . . . . . . . . . . . . . . . 4 . . Kinetic 347 | 4 78 . 128 . . . . . . . . . 3 . . . . . . . . . . . . . . 61 73 Thermal 611 | 4 10 . . . . . . . . . . . . . 1 . 6 8 76 6 44 13 . . 250 . 93 97 3 Explosive 214 | . . 3 3 . . . . . . . . . . . . . . . . . . . . . 1 . 50 76 81 Electromagnetic 2320 | . . 12 25 29 . 58 96 98 79 159 . 12 70 71 159 167 170 78 198 99 255 45 37 14 69 10 67 123 120 Robot Hit Streak 69 | 7 15 1 54 18 . 31 25 26 31 69 . 10 23 21 44 27 37 16 49 41 29 28 16 9 29 13 23 50 52 Robot Miss Streak 3 | . 1 1 2 1 . 2 1 2 2 1 . 1 2 2 2 2 1 2 2 2 2 1 1 1 3 1 2 1 2 Penetration Max 3 | . . . . . . . . . . . . . . . . . . . . . . . . . 1 1 1 3 1 Secondary Targets 11 | . . . 3 . . 2 1 2 1 1 . . . . . . . . . . . . . . . . . 1 . Max Gunslinging Chain 1 | . . . 1 . . 1 1 1 1 1 . . . . . . . . . . . . . . . . . 1 . Shots Hit Robots 2987 | 7 67 1 124 25 4 52 81 68 67 128 . 16 68 59 151 138 167 62 245 93 241 56 29 12 283 12 176 323 232 Core Hits 2210 | 3 29 2 71 13 . 32 55 27 35 52 . 2 36 33 50 55 69 28 134 36 119 16 13 6 109 6 356 469 354 Critical Kills 7 | . 1 . 1 . . . . . . . . . . . . . . . . . . . . . . . . 5 . Critical Parts Destroyed . | . . . . . . . . . . . . . . . . . . . . . . . . . . . . . . Critical Strikes 87 | . 1 . 1 . . . 2 1 . 1 . . . 2 1 1 2 1 4 . 1 . . . 7 . 16 16 30 Meltdown 5 | . . . . . . . . . . . . . . . . . . . . . . . . . . . . 5 . Destroy 2 | . 1 . 1 . . . . . . . . . . . . . . . . . . . . . . . . . . Blast 21 | . . . . . . . . . . . . . . . . . . . . . . . . . . . . 11 10 Corrupt 59 | . . . . . . . 2 1 . 1 . . . 2 1 1 2 1 4 . 1 . . . 7 . 16 . 20 Melee Attacks 99 | . . . . 1 4 . 4 1 4 3 . 5 8 . 20 3 15 3 14 6 1 2 . . . 3 2 . . Impact . | . . . . . . . . . . . . . . . . . . . . . . . . . . . . . . Slashing . | . . . . . . . . . . . . . . . . . . . . . . . . . . . . . . Piercing . | . . . . . . . . . . . . . . . . . . . . . . . . . . . . . . Sneak Attacks 82 | . . . . 1 4 . 3 1 4 3 . 1 7 . 16 3 11 3 13 6 1 2 . . . 3 . . . Combat Hostiles 8 | . . . . . . . . 1 1 3 . 1 1 . . 1 . . . . . . . . . . . . . Follow-up Attacks . | . . . . . . . . . . . . . . . . . . . . . . . . . . . . . . Damage Inflicted 219742 | 75 945 195 2569 459 . 969 1875 1084 1695 1968 . 9 1996 2780 6358 4424 5111 2279 13620 4398 11337 1819 1326 427 9773 559 44034 51370 46288 Guns 25094 | 75 945 . 1906 331 . 804 1106 818 903 1486 . 9 469 45 . . 145 193 2395 253 1313 337 . . 6869 . 2417 2275 . Cannons 59655 | . . . . . . . . . . . . . 610 1550 4015 3370 4301 1895 5496 3148 7641 1482 1276 427 2381 559 3023 6411 12070 Explosions 134926 | . . 195 663 128 . 165 769 266 792 482 . . 917 1185 2343 1054 662 191 5688 997 2383 . 50 . 523 . 38571 42684 34218 Melee . | . . . . . . . . . . . . . . . . . . . . . . . . . . . . . . Ramming 67 | . . . . . . . . . . . . . . . . . 3 . 41 . . . . . . . 23 . . Kinetic 15177 | 32 854 . 1530 . . . . . . . . . 97 . . . . . . . . . . . . . . 6261 6403 Thermal 29092 | 43 91 . 44 128 . 165 345 228 298 299 . . 111 160 1445 187 555 193 2919 253 1701 337 . . 6968 . 5571 6241 810 Explosive 109809 | . . 195 348 . . . . . . . . . . . 263 . . . 1380 . . . . . 296 . 35417 38631 33279 Electromagnetic 65597 | . . . 647 331 . 804 1530 856 1397 1669 . 9 1788 2620 4650 4237 4553 2086 9280 4145 9636 1482 1326 427 2509 559 3023 237 5796 Impact . | . . . . . . . . . . . . . . . . . . . . . . . . . . . . . . Slashing . | . . . . . . . . . . . . . . . . . . . . . . . . . . . . . . Piercing . | . . . . . . . . . . . . . . . . . . . . . . . . . . . . . . Highest Corruption 3 | . 1 1 1 1 . 3 1 . . 1 . . . . . . . . . . . . . . . . . . . Average Corruption 1 | . 1 1 1 1 . 3 1 . . 1 . . . . . . . . . . . . . . . . . . . Corruption Purged 3 | . . . . 1 . . 1 . . 1 . . . . . . . . . . . . . . . . . . . Corruption Blocked 29 | . . . . . . . . . . . . . . . 6 1 3 . 12 . 2 . . . 4 . 1 . . Effects 19 | . 3 2 11 1 . . . . . 2 . . . . . . . . . . . . . . . . . . . Message Errors 5 | . . 1 3 1 . . . . . . . . . . . . . . . . . . . . . . . . . Matter Fused 4 | . 1 . 2 . . . . . . 1 . . . . . . . . . . . . . . . . . . . Energy Discharges 4 | . 1 1 1 . . . . . . 1 . . . . . . . . . . . . . . . . . . . Data Loss (minor) 2 | . 1 . 1 . . . . . . . . . . . . . . . . . . . . . . . . . . Data Loss (major) 4 | . . . 4 . . . . . . . . . . . . . . . . . . . . . . . . . . Overload Shots 16 | . . . . . . . . . . . . . . . . . . 1 3 . 2 . . . . . 6 1 3 Overflow Damage 8373 | . . 39 53 4 . . . . 50 . . . 11 64 334 25 76 45 358 130 195 17 36 . 56 10 1990 2433 2447 Projectiles 2865 | . . . . . . . . . . . . . . 64 64 14 76 45 248 122 170 17 36 . 33 10 149 649 1168 Explosions 5497 | . . 39 53 4 . . . . 50 . . . 11 . 270 11 . . 99 8 25 . . . 23 . 1841 1784 1279 Melee 11 | . . . . . . . . . . . . . . . . . . . 11 . . . . . . . . . . Knockbacks 39 | . . . . . . . . . . . . . . . . . . . . . . . . . . . . 20 19 Impact . | . . . . . . . . . . . . . . . . . . . . . . . . . . . . . . Kinetic 38 | . . . . . . . . . . . . . . . . . . . . . . . . . . . . 19 19 Secondary 1 | . . . . . . . . . . . . . . . . . . . . . . . . . . . . 1 . Self-Inflicted Damage 2276 | . . 17 22 74 . 58 . 76 55 110 . . 79 39 123 12 7 3 266 28 81 . . . 65 . 449 530 182 Shots 77 | . . 1 1 3 . 3 . 3 3 5 . . 4 1 4 2 2 1 11 2 3 . . . 1 . 8 14 5 Rammed 3 | . . . . . . . . . . . . . . . . . 1 . 1 . . . . . . . 1 . . Targets Rammed 3 | . . . . . . . . . . . . . . . . . 1 . 1 . . . . . . . 1 . . Kicked . | . . . . . . . . . . . . . . . . . . . . . . . . . . . . . . Crushed . | . . . . . . . . . . . . . . . . . . . . . . . . . . . . . . Highest Temperature 423 | 25 318 . 109 271 . 255 300 284 232 350 . . 4 258 282 294 362 126 296 280 342 276 274 116 235 8 330 423 311 Average Temperature 77 | 8 164 . 28 74 . 80 68 76 62 134 . . 4 91 76 88 73 30 79 97 91 98 118 63 36 5 131 77 69 Received Heat Transfer 4542 | . 303 . 218 . . 64 137 135 135 240 . . 175 379 259 188 180 102 347 72 305 71 16 4 86 25 120 744 237 Effects 14 | . . . . . . 1 . . . 6 . . . . . 1 1 . . . 1 1 . . . . 1 2 . Shutdowns 2 | . . . . . . . . . . 1 . . . . . . 1 . . . . . . . . . . . . Energy Bleed 5 | . . . . . . 1 . . . . . . . . . 1 . . . . 1 1 . . . . . 1 . Interference 6 | . . . . . . . . . . 5 . . . . . . . . . . . . . . . . 1 . . Matter Decay 1 | . . . . . . . . . . . . . . . . . . . . . . . . . . . . 1 . Siege Activations . | . . . . . . . . . . . . . . . . . . . . . . . . . . . . . . Robots Corrupted 227 | . . . . . . 2 . 1 3 5 . . 9 13 22 13 12 5 34 20 30 8 6 3 11 . 8 . 22 Combat Hostiles 210 | . . . . . . 2 . 1 2 2 . . 8 12 20 13 12 5 32 15 30 7 6 3 10 . 8 . 22 Parts Fried 592 | . . . . 2 . 3 8 5 12 11 . . 17 19 57 38 51 21 101 46 95 11 13 3 37 4 11 . 27 Impact Corruptions 1 | . . . . . . . . . . . . . . . . . . . 1 . . . . . . . . . . Robots Melted 6 | . . . . . . . . . . . . . . . . . . . . . . . . . 1 . . 5 . Combat Hostiles 6 | . . . . . . . . . . . . . . . . . . . . . . . . . 1 . . 5 . Parts Melted 50 | . . . . . . . 1 . . . . . 1 . 1 . . . 12 . 1 . . . 5 . 4 25 . Heat Transferred 26718 | 100 200 . . 200 . 200 300 200 200 300 . . 76 150 959 124 572 185 2884 184 1793 481 . . 7228 . 4978 4830 574 Parts Sabotaged 2 | . . . . . . . . . . . . . . . . . . . . . . . . . . . 2 . . Parts Stolen . | . . . . . . . . . . . . . . . . . . . . . . . . . . . . . . Parts Stripped . | . . . . . . . . . . . . . . . . . . . . . . . . . . . . . . Power Chain Reactions 94 | . . . 3 4 . 3 4 6 5 5 . . 4 1 2 4 2 . 4 . 5 . . . 1 . 10 26 5 Alert | -11 -10 -10 -9 -9 -9 -8 -8 -8 -8 -8 -7 -7 -7 -7 -6 -6 -6 -6 -5 -5 -4 -4 -4 -4 -4 -3 -3 -2 -1 ------- Run | Yrd Mat Min Mat Min Exi Min Mat Gar Mat Gar Fac Was Fac Gar Fac Gar Fac Gar Fac Gar Fac Ext Cet Arc Hub Res Tes Res Acc Peak Influence 9309 | 10 351 108 471 145 . 210 368 545 573 1081 421 100 229 792 413 1600 639 1271 1426 1302 1173 359 399 205 636 209 5826 8176 9309 Initial 3719 | . 4 20 . 36 . . 20 13 194 175 421 100 51 46 308 190 624 129 495 60 507 244 65 111 . 185 31 2460 3719 Average 1198 | 4 206 26 244 47 . 71 160 341 333 503 421 90 63 443 191 891 230 632 574 724 575 194 288 178 296 76 4210 4699 7107 Maximum Alert Level 5 | . 1 . 2 . . 1 1 2 2 3 2 . 1 3 2 5 2 4 4 4 4 1 1 1 2 1 5 5 5 Low Security (%) 30 | 100 39 100 38 100 . 95 68 28 6 3 . 100 95 16 56 1 53 6 11 12 2 42 18 17 29 97 . . . Level 1 23 | . 60 . 49 . . 4 31 28 58 31 . . 4 27 41 11 27 31 10 6 29 57 81 82 41 2 . . . Level 2 18 | . . . 11 . . . . 43 34 40 100 . . 47 2 22 19 25 46 30 42 . . . 28 . . . . Level 3 8 | . . . . . . . . . . 24 . . . 8 . 31 . 20 26 36 20 . . . . . . . . Level 4 2 | . . . . . . . . . . . . . . . . 25 . 15 3 13 5 . . . . . . . . Level 5 2 | . . . . . . . . . . . . . . . . 6 . . . . . . . . . . . 27 19 High Security 9 | . . . . . . . . . . . . . . . . . . . . . . . . . . . . 72 80 Max Security 3 | . . . . . . . . . . . . . . . . . . . . . . . . . . . 99 . . Sterilizations 3 | . . . . . . . . . . . . . . . . . . . . . . . . . . . 1 1 1 Squads Dispatched 210 | . 5 . 7 1 . . 2 . 2 . . . 7 . 12 . 18 . 16 . 22 1 . . 6 1 42 38 30 Investigation 25 | . 5 . 3 1 . . 1 . 1 . . . 2 . 2 . 3 . 1 . 5 1 . . . . . . . Extermination 22 | . . . . . . . . . . . . . 1 . 4 . 4 . 4 . 4 . . . 4 . . 1 . Reinforcement 38 | . . . 4 . . . 1 . . . . . 3 . 3 . 7 . 6 . 7 . . . 2 1 . 1 3 Assault 111 | . . . . . . . . . . . . . . . . . 1 . 4 . 3 . . . . . 42 35 26 Garrison 14 | . . . . . . . . . 1 . . . 1 . 3 . 3 . 1 . 3 . . . . . . 1 1 Intercept . | . . . . . . . . . . . . . . . . . . . . . . . . . . . . . . Searches Triggered . | . . . . . . . . . . . . . . . . . . . . . . . . . . . . . . Construction Impeded 9 | . . . . . . . . . . . . . 1 . 1 . . . 3 . 1 . . . 1 . . 1 1 Haulers Reinforced 3 | . . . . . . . . . . . . . . . 1 . . . . . 1 . . . . . . . 1 Active Scanning Responses . | . . . . . . . . . . . . . . . . . . . . . . . . . . . . . . Cargo Convoy Interrupts 5 | . . . . . . . . . . . . . 1 . 1 . 1 . 1 . 1 . . . . . . . . Stealth | -11 -10 -10 -9 -9 -9 -8 -8 -8 -8 -8 -7 -7 -7 -7 -6 -6 -6 -6 -5 -5 -4 -4 -4 -4 -4 -3 -3 -2 -1 --------- Run | Yrd Mat Min Mat Min Exi Min Mat Gar Mat Gar Fac Was Fac Gar Fac Gar Fac Gar Fac Gar Fac Ext Cet Arc Hub Res Tes Res Acc Distress Signals 38 | . . . 1 . . . 2 . 3 . . . 1 1 3 2 2 . 3 . 4 . . . 2 8 . 3 3 Communications Jammed . | . . . . . . . . . . . . . . . . . . . . . . . . . . . . . . Distress Signals . | . . . . . . . . . . . . . . . . . . . . . . . . . . . . . . Times Spotted 1490 | . 23 1 42 3 . 9 35 16 21 23 . 6 29 32 53 49 59 29 99 39 112 15 14 4 64 8 236 261 208 Peak Tracking Total 39 | . 4 1 5 3 . 2 4 4 5 5 . 3 9 10 7 6 6 7 10 10 8 5 5 1 7 4 39 29 19 Tactical Retreats 40 | . . . . . . . 1 1 1 . . . 2 3 1 3 1 2 5 . 4 . 1 . 5 . 1 6 3 Traps | -11 -10 -10 -9 -9 -9 -8 -8 -8 -8 -8 -7 -7 -7 -7 -6 -6 -6 -6 -5 -5 -4 -4 -4 -4 -4 -3 -3 -2 -1 ------- Run | Yrd Mat Min Mat Min Exi Min Mat Gar Mat Gar Fac Was Fac Gar Fac Gar Fac Gar Fac Gar Fac Ext Cet Arc Hub Res Tes Res Acc Traps Triggered 71 | . 1 . 1 . . . 2 1 . 4 1 . 6 6 9 2 5 7 5 8 2 3 . . 1 . 2 1 4 Indirectly 10 | . . . . . . . . . . . . . 2 1 3 . . . 2 1 . . . . 1 . . . . Trap Hack Attempts 43 | . 6 . . . . . 15 . 8 . . . . 1 3 . 10 . . . . . . . . . . . . Triggered . | . . . . . . . . . . . . . . . . . . . . . . . . . . . . . . Disarmed 8 | . . . . . . . . . . . . . 6 . 1 . . . . . . . . . . 1 . . . Reprogrammed 14 | . 1 . . . . . 7 . 2 . . . . . . . 4 . . . . . . . . . . . . Reused 8 | . . . . . . . . . . . . . 1 . . . 3 . 4 . . . . . . . . . . Traps Extracted 12 | . . . . . . . 8 . . . . . . . . . 4 . . . . . . . . . . . . Installed 9 | . . . . . . . 1 . . . . . 1 . . . 3 . 4 . . . . . . . . . . Triggered 13 | . . . . . . . . . . . . . 1 2 . . 3 . 4 . 2 . . . 1 . . . . Most Traps Carried 6 | . . . . . . . 6 6 6 6 6 6 6 5 5 5 6 6 6 2 2 2 2 2 2 . . . . Machines | -11 -10 -10 -9 -9 -9 -8 -8 -8 -8 -8 -7 -7 -7 -7 -6 -6 -6 -6 -5 -5 -4 -4 -4 -4 -4 -3 -3 -2 -1 ---------- Run | Yrd Mat Min Mat Min Exi Min Mat Gar Mat Gar Fac Was Fac Gar Fac Gar Fac Gar Fac Gar Fac Ext Cet Arc Hub Res Tes Res Acc Machines Disabled 133 | . . 1 . 7 . . 5 2 4 4 . . 1 3 15 5 5 8 21 4 4 . . 1 1 . 15 13 14 Max in Single Turn 6 | . . 1 . 6 . . 3 1 2 1 . . . 1 4 1 2 1 4 1 1 . . 1 . . 2 4 1 Garrison Access 10 | . . . . . . . . . . . . . 1 . . . 1 . 1 . 2 . . . . . 1 1 3 Garrison Relay 21 | . . . . . . . . 2 . 3 . . . 3 . 4 . 5 . 4 . . . . . . . . . Phase Generator 1 | . . . . . . . . . . . . . . 1 . . . . . . . . . . . . . . . Network Hub 4 | . . . . . . . . . . . . . . . . . . . . . . . . . 4 . . . . Machines Repaired . | . . . . . . . . . . . . . . . . . . . . . . . . . . . . . . Machines Dismantled 9 | . . . . . . . . . . . . . . 4 . . . . . . . . 1 . 4 . . . . Machines Sabotaged 1 | . 1 . . . . . . . . . . . . . . . . . . . . . . . . . . . . Overloaded Fab Kills . | . . . . . . . . . . . . . . . . . . . . . . . . . . . . . . Hacking | -11 -10 -10 -9 -9 -9 -8 -8 -8 -8 -8 -7 -7 -7 -7 -6 -6 -6 -6 -5 -5 -4 -4 -4 -4 -4 -3 -3 -2 -1 --------- Run | Yrd Mat Min Mat Min Exi Min Mat Gar Mat Gar Fac Was Fac Gar Fac Gar Fac Gar Fac Gar Fac Ext Cet Arc Hub Res Tes Res Acc Machines Accessed 144 | . 9 . 10 1 2 . 10 3 6 3 3 . 9 3 13 2 11 3 10 4 16 16 . . 2 6 . 1 1 Terminals 96 | . 7 . 8 . . . 6 3 4 3 2 . 5 3 6 2 7 3 4 4 8 15 . . 2 4 . . . Fabricators 10 | . . . . . . . . . . . . . . . 2 . 1 . 2 . 4 . . . . . . 1 . Repair Stations 4 | . . . . . . . 1 . . . . . 1 . . . . . . . . . . . . 1 . . 1 Recycling Units 11 | . 2 . 1 . . . 1 . 1 . 1 . . . 1 . 1 . . . 1 1 . . . 1 . . . Scanalyzers 10 | . . . 1 . . . 1 . . . . . 1 . 2 . 1 . 3 . 1 . . . . . . . . Garrison Access 10 | . . . . . . . 1 . 1 . . . 2 . 2 . 1 . 1 . 2 . . . . . . . . Total Hacks 641 | . 38 . 69 1 5 . 56 8 21 9 8 . 50 6 67 4 46 8 51 14 62 52 . . 14 44 . 5 3 Successful 451 | . 32 . 56 1 5 . 49 3 13 3 5 . 38 4 46 3 34 6 40 6 41 30 . . 5 24 . 5 2 Failed 190 | . 6 . 13 . . . 7 5 8 6 3 . 12 2 21 1 12 2 11 8 21 22 . . 9 20 . . 1 Catastrophic 34 | . 1 . . . . . . . 2 1 1 . 1 1 3 1 . . 2 1 3 5 . . 5 7 . . . Database Lockouts . | . . . . . . . . . . . . . . . . . . . . . . . . . . . . . . Manual 331 | . 29 . 53 . 1 . 29 3 9 4 5 . 17 3 35 2 17 4 20 7 22 30 . . 11 29 . 1 . Terminals 470 | . 34 . 62 . . . 37 8 18 9 4 . 31 6 43 4 32 8 21 14 36 51 . . 14 38 . . . Fabricators 45 | . . . . . . . . . . . . . . . 8 . 5 . 14 . 13 . . . . . . 5 . Repair Stations 13 | . . . . . . . 4 . . . . . 3 . . . . . . . . . . . . 3 . . 3 Recycling Units 25 | . 4 . 2 . . . 2 . 2 . 4 . . . 3 . 1 . . . 3 1 . . . 3 . . . Scanalyzers 57 | . . . 5 . . . 9 . . . . . 12 . 9 . 7 . 12 . 3 . . . . . . . . Garrison Access 25 | . . . . . . . 4 . 1 . . . 4 . 4 . 1 . 4 . 7 . . . . . . . . Terminal Hacks 250 | . 25 . 43 1 5 . 22 3 8 2 1 . 16 4 18 3 15 5 11 6 21 25 . . 3 13 . . . Record 4 | . . . . . 4 . . . . . . . . . . . . . . . . . . . . . . . . Part Schematic 44 | . 3 . 5 . . . 5 . . . . . 4 1 3 1 5 . 2 1 4 5 . . 1 4 . . . Robot Schematic 10 | . 3 . 3 . . . . . . . . . 1 . 1 . 1 . . . . 1 . . . . . . . Robot Analysis 23 | . 2 . 7 . . . 2 . . . . . . . 4 . 1 . . . 1 6 . . . . . . . Prototype ID Bank 52 | . 13 . 22 . . . 1 . 1 . 1 . 4 . 2 . 1 2 . . 2 1 . . 1 1 . . . Open Door 9 | . . . . 1 . . . . . . . . . 1 . 1 . . . 1 . 5 . . . . . . . Level Access Points 3 | . . . 1 . . . 1 . . . . . . . . . . . . . . . . . 1 . . . . Branch Access Points 6 | . . . 1 . . . 1 . 1 . . . . . 1 . . . . . . 1 . . . 1 . . . Emergency Access Points 6 | . . . . . . . . 1 . 1 . . . 1 . 1 . 1 . 1 . . . . . . . . . Machine Index 9 | . . . 1 . . . 1 . 1 . . . . . 1 . 1 . 1 . 1 1 . . . 1 . . . Terminal Index 3 | . . . . . . . . . . . . . 1 . 1 . . . . . . . . . . 1 . . . Fabricator Index 2 | . . . . . . . . . . . . . . . . . 1 . . . 1 . . . . . . . . Garrison Index 4 | . . . . . . . . . 1 . . . 1 . . . . . 1 . 1 . . . . . . . . Alert Level 3 | . . . . . . . 3 . . . . . . . . . . . . . . . . . . . . . . Unreport Threat 12 | . . . . . . . 1 . 1 . . . 1 . 1 . . . 3 . 3 1 . . . 1 . . . Locate Traps 13 | . 1 . 1 . . . 2 . . . . . 1 . 1 . 2 . . . 2 2 . . . 1 . . . Disarm Traps 2 | . . . . . . . . . . . . . 1 . . . . . . . . . . . . 1 . . . Transport Status 1 | . . . . . . . . . . . . . . . . . . . . . 1 . . . . . . . . Reinforcement Status 1 | . . . . . . . . . . . . . 1 . . . . . . . . . . . . . . . . Recall Investigation 1 | . . . . . . . . . . . . . . . . . . . 1 . . . . . . . . . . Recall Extermination 1 | . . . . . . . . . . . . . . . 1 . . . . . . . . . . . . . . Recall Reinforcements 3 | . . . . . . . . . . . . . . . . . . . 1 . 2 . . . . . . . . Recall Assault 1 | . . . . . . . . . . . . . . . . . . . . . 1 . . . . . . . . Hauler Manifests 7 | . 1 . 1 . . . 1 . 1 . . . . . 1 . 1 . . . . 1 . . . . . . . Registered Components 5 | . 1 . . . . . 1 . . . . . . . . . 1 . 1 . 1 . . . . . . . . Registered Prototypes 2 | . . . . . . . 1 . . . . . . . 1 . . . . . . . . . . . . . . Zone Layout 14 | . 1 . 1 . . . 2 . 2 . . . 1 . . . 1 . 1 1 1 1 . . . 2 . . . Garrison Registry 2 | . . . . . . . . 1 . . . . . . . . . 1 . . . . . . . . . . . Patrol Navigation 3 | . . . . . . . . . . 1 . . . . . . . 1 . 1 . . . . . . . . . Security Stations 3 | . . . . . . . . 1 . . . . . 1 . . . . . 1 . . . . . . . . . Derelict Proto ID Bank 1 | . . . . . 1 . . . . . . . . . . . . . . . . . . . . . . . . Fabricator Hacks 34 | . . . . . . . . . . . . . . . 7 . 4 . 10 . 9 . . . . . . 4 . Load Schematic 17 | . . . . . . . . . . . . . . . 3 . 2 . 5 . 5 . . . . . . 2 . Build 17 | . . . . . . . . . . . . . . . 4 . 2 . 5 . 4 . . . . . . 2 . Repair Station Hacks 10 | . . . . . . . 4 . . . . . 2 . . . . . . . . . . . . 2 . . 2 Scan Component 5 | . . . . . . . 2 . . . . . 1 . . . . . . . . . . . . 1 . . 1 Repair 5 | . . . . . . . 2 . . . . . 1 . . . . . . . . . . . . 1 . . 1 Recycling Unit Hacks 11 | . 2 . 1 . . . 1 . 1 . 1 . . . 1 . 1 . . . 1 1 . . . 1 . . . Report Inventory 10 | . 2 . 1 . . . 1 . 1 . 1 . . . . . 1 . . . 1 1 . . . 1 . . . Retrieve Components 1 | . . . . . . . . . . . . . . . 1 . . . . . . . . . . . . . . Scanalyzer 51 | . . . 4 . . . 9 . . . . . 9 . 9 . 7 . 11 . 2 . . . . . . . . Insert Component 21 | . . . 2 . . . 4 . . . . . 3 . 4 . 3 . 4 . 1 . . . . . . . . Analyze 30 | . . . 2 . . . 5 . . . . . 6 . 5 . 4 . 7 . 1 . . . . . . . . Garrison Access Hacks 11 | . . . . . . . 1 . 1 . . . 2 . 3 . 1 . 1 . 2 . . . . . . . . Unlock Access 8 | . . . . . . . 1 . 1 . . . 1 . 2 . 1 . 1 . 1 . . . . . . . . Seal Access 2 | . . . . . . . . . . . . . 1 . . . . . . . 1 . . . . . . . . Coupler Status 1 | . . . . . . . . . . . . . . . 1 . . . . . . . . . . . . . . Unauthorized Hacks 84 | . 5 . 8 . . . 12 . 3 1 3 . 9 . 8 . 6 1 7 . 6 4 . . 2 8 . 1 . Terminals 53 | . 3 . 6 . . . 8 . 2 1 . . 7 . 5 . 6 1 2 . 1 4 . . 2 5 . . . Track 22 | . . . 3 . . . 3 . 1 1 . . 4 . 2 . 2 1 1 . 1 . . . 1 2 . . . Botnet 21 | . 2 . 2 . . . 4 . 1 . . . 2 . 2 . 2 . 1 . . 3 . . . 2 . . . Disrupt 3 | . . . . . . . . . . . . . 1 . . . 1 . . . . . . . 1 . . . . Operators 6 | . . . 1 . . . 1 . . . . . . . 1 . 1 . . . . 1 . . . 1 . . . Sabotage 1 | . 1 . . . . . . . . . . . . . . . . . . . . . . . . . . . . Fabricators 5 | . . . . . . . . . . . . . . . . . . . 3 . 1 . . . . . . 1 . Prioritize 3 | . . . . . . . . . . . . . . . . . . . 2 . . . . . . . . 1 . Fabnet 2 | . . . . . . . . . . . . . . . . . . . 1 . 1 . . . . . . . . Repair Stations 1 | . . . . . . . . . . . . . . . . . . . . . . . . . . 1 . . . Mechanics 1 | . . . . . . . . . . . . . . . . . . . . . . . . . . 1 . . . Recycling Units 14 | . 2 . 1 . . . 1 . 1 . 3 . . . 2 . . . . . 2 . . . . 2 . . . Reject 2 | . . . . . . . . . . . 1 . . . . . . . . . . . . . . 1 . . . Recyclers 4 | . . . . . . . . . . . 1 . . . 1 . . . . . 1 . . . . 1 . . . Mask 3 | . . . . . . . . . . . 1 . . . 1 . . . . . 1 . . . . . . . . Tunnel 5 | . 2 . 1 . . . 1 . 1 . . . . . . . . . . . . . . . . . . . . Scanalyzers 1 | . . . 1 . . . . . . . . . . . . . . . . . . . . . . . . . . Extract 1 | . . . 1 . . . . . . . . . . . . . . . . . . . . . . . . . . Garrison Access 10 | . . . . . . . 3 . . . . . 2 . 1 . . . 2 . 2 . . . . . . . . Reprogram 5 | . . . . . . . 1 . . . . . 1 . 1 . . . 1 . 1 . . . . . . . . Intercept 2 | . . . . . . . 1 . . . . . 1 . . . . . . . . . . . . . . . . Watchers 3 | . . . . . . . 1 . . . . . . . . . . . 1 . 1 . . . . . . . . Data Cores Recovered 3 | . . . . . . . . . 1 . . . . . . . . . 1 . 1 . . . . . . . . Used 1 | . . . . . . . . . . . . . . . . . . . . . 1 . . . . . . . . Hacking Detections 111 | . 6 . 9 . . . 7 3 5 3 2 . 8 2 11 1 9 2 9 3 13 11 . . 2 3 . 1 1 Full Trace Events 16 | . 4 . 2 . . . . . . 2 . . . . 1 . 3 1 . . 2 1 . . . . . . . Feedback Events 1 | . 1 . . . . . . . . . . . . . . . . . . . . . . . . . . . . Corruption 1 | . 1 . . . . . . . . . . . . . . . . . . . . . . . . . . . . Feedback Blocked . | . . . . . . . . . . . . . . . . . . . . . . . . . . . . . . Robot Schematics Acquired 10 | . 3 . 3 . . . . . . . . . 1 . 1 . 1 . . . . 1 . . . . . . . Robots Built 6 | . . . . . . . . . . . . . . . 2 . . . 4 . . . . . . . . . . Authchips . | . . . . . . . . . . . . . . . . . . . . . . . . . . . . . . Time 228 | . . . . . . . . . . . . . . . 76 . . . 152 . . . . . . . . . . Total Robot Build Rating 30 | . . . . . . . . . . . . . . . 10 . . . 20 . . . . . . . . . . Part Schematics Acquired 66 | . 3 . 8 . . . 9 . . . . . 7 1 7 1 8 . 6 1 5 5 . . 1 4 . . . Parts Built 22 | . . . . . . . . . . . . . . . 6 . 2 . 4 . 6 . . . . . . 4 . Authchips . | . . . . . . . . . . . . . . . . . . . . . . . . . . . . . . Time 900 | . . . . . . . . . . . . . . . 169 . 128 . 292 . 195 . . . . . . 116 . Total Part Build Rating 154 | . . . . . . . . . . . . . . . 40 . 16 . 28 . 42 . . . . . . 28 . Parts Repaired 5 | . . . . . . . 2 . . . . . 1 . . . . . . . . . . . . 1 . . 1 Time 232 | . . . . . . . 137 . . . . . 26 . . . . . . . . . . . . 47 . . 22 Parts Recycled . | . . . . . . . . . . . . . . . . . . . . . . . . . . . . . . Recycled Matter . | . . . . . . . . . . . . . . . . . . . . . . . . . . . . . . Retrieved Matter . | . . . . . . . . . . . . . . . . . . . . . . . . . . . . . . Retrieved Components 9 | . . . . . . . . . . . . . . . 9 . . . . . . . . . . . . . . Parts Scanalyzed 21 | . . . 2 . . . 4 . . . . . 3 . 4 . 3 . 4 . 1 . . . . . . . . Part Schematics Acquired 21 | . . . 2 . . . 4 . . . . . 3 . 4 . 3 . 4 . 1 . . . . . . . . Parts Damaged 3 | . . . . . . . 2 . . . . . . . . . 1 . . . . . . . . . . . . Bothacking | -11 -10 -10 -9 -9 -9 -8 -8 -8 -8 -8 -7 -7 -7 -7 -6 -6 -6 -6 -5 -5 -4 -4 -4 -4 -4 -3 -3 -2 -1 ------------ Run | Yrd Mat Min Mat Min Exi Min Mat Gar Mat Gar Fac Was Fac Gar Fac Gar Fac Gar Fac Gar Fac Ext Cet Arc Hub Res Tes Res Acc Used RIF Installer 7 | . . . . . . . . 2 . 1 . . . 1 . 1 . 1 . 1 . . . . . . . . . Watcher Feeds 1 | . . . . . . . . . . . . . . 1 . . . . . . . . . . . . . . . Patrol Navigation 1 | . . . . . . . . . . . . . . . . . . 1 . . . . . . . . . . . Structural Interface 1 | . . . . . . . . . . 1 . . . . . . . . . . . . . . . . . . . Program Shield 1 | . . . . . . . . 1 . . . . . . . . . . . . . . . . . . . . . Autooverride 1 | . . . . . . . . . . . . . . . . 1 . . . . . . . . . . . . . Autoassimilate 1 | . . . . . . . . . . . . . . . . . . . . 1 . . . . . . . . . Robots Hacked 68 | . . . . 1 4 . 3 . 3 . . 4 3 . 15 . 10 . 3 . 3 2 1 . 2 5 8 1 . Non-combat 43 | . . . . . 3 . 3 . 3 . . . 3 . 15 . 9 . 2 . 1 2 . . . . 2 . . Combat 25 | . . . . 1 1 . . . . . . 4 . . . . 1 . 1 . 2 . 1 . 2 5 6 1 . Robot Hacks Applied 76 | . . . . 1 4 . 3 . 3 . . 5 5 . 19 . 14 . 14 . 1 2 . . . 3 2 . . parse_system 15 | . . . . 1 4 . 1 . . . . . 1 . 3 . 1 . 1 . . . . . . 3 . . . no_distress 11 | . . . . . . . 2 . 3 . . . . . 6 . . . . . . . . . . . . . . find_chute 4 | . . . . . . . . . . . . . . . 4 . . . . . . . . . . . . . . deconstruct_machine 1 | . . . . . . . . . . . . . . . . . 1 . . . . . . . . . . . . map_earth 1 | . . . . . . . . . . . . . 1 . . . . . . . . . . . . . . . . find_fabricator 1 | . . . . . . . . . . . . . 1 . . . . . . . . . . . . . . . . drop_inventory 5 | . . . . . . . . . . . . . 2 . . . 2 . . . . 1 . . . . . . . ignore_parts 4 | . . . . . . . . . . . . . . . 1 . 3 . . . . . . . . . . . . find_station 1 | . . . . . . . . . . . . . . . . . . . 1 . . . . . . . . . . deconstruct_bot 2 | . . . . . . . . . . . . . . . 1 . . . . . 1 . . . . . . . . purge_threat 17 | . . . . . . . . . . . . . . . . . 5 . 12 . . . . . . . . . . recall_investigation 1 | . . . . . . . . . . . . . . . . . . . . . . 1 . . . . . . . map_route 1 | . . . . . . . . . . . . . . . 1 . . . . . . . . . . . . . . mark_security 1 | . . . . . . . . . . . . . . . . . 1 . . . . . . . . . . . . redirect_shields 1 | . . . . . . . . . . . . . . . . . . . . . . . . . . . 1 . . ignore_targets 5 | . . . . . . . . . . . . 5 . . . . . . . . . . . . . . . . . streamctrl_low 1 | . . . . . . . . . . . . . . . 1 . . . . . . . . . . . . . . streamctrl_high 1 | . . . . . . . . . . . . . . . 1 . . . . . . . . . . . . . . formatsys_low 2 | . . . . . . . . . . . . . . . 1 . . . . . . . . . . . 1 . . formatsys_high 1 | . . . . . . . . . . . . . . . . . 1 . . . . . . . . . . . . Relay Couplers Released 40 | . . . . . . . . 3 . 5 . . 1 4 . 8 . 10 1 5 . . . . . . . 2 1 Machine Destruction 40 | . . . . . . . . 3 . 5 . . 1 4 . 8 . 10 1 5 . . . . . . . 2 1 Attached 9 | . . . . . . . . 1 . 1 . 1 . 1 . 2 1 . . 2 . . . . . . . . . Fabnet Peak Effective % 4 | . . . . . . . . . . . . . . . . . . . . . 3 3 3 3 3 4 4 1 . Autooverrided 15 | . . . . . . . . . . . . . . . . . . . . . 2 . 1 . 2 3 6 1 . Robots Rewired 25 | . . . . . . . . 1 1 1 . . 2 2 . 3 . 3 . 6 . . . . 1 . . 5 . Allies Hacked . | . . . . . . . . . . . . . . . . . . . . . . . . . . . . . . Hacks Repelled . | . . . . . . . . . . . . . . . . . . . . . . . . . . . . . . Allies | -11 -10 -10 -9 -9 -9 -8 -8 -8 -8 -8 -7 -7 -7 -7 -6 -6 -6 -6 -5 -5 -4 -4 -4 -4 -4 -3 -3 -2 -1 -------- Run | Yrd Mat Min Mat Min Exi Min Mat Gar Mat Gar Fac Was Fac Gar Fac Gar Fac Gar Fac Gar Fac Ext Cet Arc Hub Res Tes Res Acc Total Allies 70 | . . . . 1 . . . 1 1 1 . 1 3 4 7 5 1 5 4 6 3 7 1 . 3 3 7 6 . Largest Group 6 | . . . . 1 . . . 1 1 1 . 1 3 3 3 3 1 5 4 6 4 5 3 2 1 3 2 1 . Highest-Rated Group 263 | . . . . 31 . . . 15 29 16 . 31 106 185 185 142 26 226 164 231 149 205 263 205 56 123 73 99 . Highest-Rated Ally 159 | . . . . 31 . . . 15 29 16 . 31 40 80 110 80 26 51 51 41 49 159 159 159 56 64 73 99 . Total Orders 1 | . . . . . . . . . . . . . . . 1 . . . . . . . . . . . . . . DROP 1 | . . . . . . . . . . . . . . . 1 . . . . . . . . . . . . . . Ally Attacks 307 | . . . . . . . . 1 7 1 . 13 7 6 15 47 . 45 1 49 36 6 33 7 6 2 4 21 . Total Damage 10042 | . . . . . . . . 28 115 14 . 211 403 336 1014 1748 . 972 29 1855 1191 263 646 119 202 94 139 663 . Kills 53 | . . . . . . . . . 2 . . . 1 4 5 8 . 8 . 9 7 1 3 . 1 1 . 3 . Allies Corrupted 3 | . . . . . . . . . 1 . . . . . . . . . . 2 . . . . . . . . . Allies Melted 1 | . . . . . . . . . . . . . . . . . . . . . 1 . . . . . . . . Intel | -11 -10 -10 -9 -9 -9 -8 -8 -8 -8 -8 -7 -7 -7 -7 -6 -6 -6 -6 -5 -5 -4 -4 -4 -4 -4 -3 -3 -2 -1 ------- Run | Yrd Mat Min Mat Min Exi Min Mat Gar Mat Gar Fac Was Fac Gar Fac Gar Fac Gar Fac Gar Fac Ext Cet Arc Hub Res Tes Res Acc Robot Analysis Total 22 | . 2 . 7 . . . 2 . . . . . . . 3 . 1 . . . 1 6 . . . . . . . Derelict Logs Recovered . | . . . . . . . . . . . . . . . . . . . . . . . . . . . . . . Drone Launches . | . . . . . . . . . . . . . . . . . . . . . . . . . . . . . . Drone Recoveries . | . . . . . . . . . . . . . . . . . . . . . . . . . . . . . . Exploration | -11 -10 -10 -9 -9 -9 -8 -8 -8 -8 -8 -7 -7 -7 -7 -6 -6 -6 -6 -5 -5 -4 -4 -4 -4 -4 -3 -3 -2 -1 ------------- Run | Yrd Mat Min Mat Min Exi Min Mat Gar Mat Gar Fac Was Fac Gar Fac Gar Fac Gar Fac Gar Fac Ext Cet Arc Hub Res Tes Res Acc Turns Passed 36345 | 88 905 578 1937 782 372 779 1279 831 659 1421 215 169 1365 1315 2380 1520 2400 1412 2709 1375 2782 699 270 447 1424 613 1384 1637 2598 Spaces Moved 19879 | 59 633 526 1507 595 329 537 732 572 380 799 166 108 891 750 1257 943 1193 642 1267 769 1342 430 150 41 566 328 604 539 1224 Core 23 | 23 . . . . . . . . . . . . . . . . . . . . . . . . . . . . . Treads . | . . . . . . . . . . . . . . . . . . . . . . . . . . . . . . Legs . | . . . . . . . . . . . . . . . . . . . . . . . . . . . . . . Wheels 19856 | 36 633 526 1507 595 329 537 732 572 380 799 166 108 891 750 1257 943 1193 642 1267 769 1342 430 150 41 566 328 604 539 1224 Hover . | . . . . . . . . . . . . . . . . . . . . . . . . . . . . . . Flight . | . . . . . . . . . . . . . . . . . . . . . . . . . . . . . . Fastest Speed 50 | 50 90 90 90 111 111 111 111 111 126 126 125 125 110 125 115 130 130 130 130 145 128 128 128 128 128 150 130 130 130 Average Speed 128 | 103 90 90 101 111 111 111 111 111 126 126 125 125 124 136 132 130 137 144 144 145 136 128 128 128 138 150 146 149 149 Slowest Speed 190 | 150 100 90 111 111 111 111 111 126 126 126 126 125 125 140 175 130 145 145 145 145 163 128 128 128 150 150 170 190 150 Overloaded Moves . | . . . . . . . . . . . . . . . . . . . . . . . . . . . . . . Propulsion Burnouts . | . . . . . . . . . . . . . . . . . . . . . . . . . . . . . . Robots Hopped 1 | . . . . . . . . . . . . . . . 1 . . . . . . . . . . . . . . Cave-ins Triggered . | . . . . . . . . . . . . . . . . . . . . . . . . . . . . . . Exploration Rate (%) 66 | 4 90 98 92 98 66 93 70 72 49 94 5 78 32 98 43 97 46 91 47 90 58 77 81 69 82 15 88 27 43 Regions Visited 29 Branch Regions 9 Pre-discovered Areas 6 | . 2 . 1 . 1 . 1 . 1 . . . . . . . . . . . . . . . . . . . . Known Exits Taken 21 | 1 1 1 1 1 1 1 1 . 1 . . . 1 . 1 . 1 . 1 . 1 1 1 1 1 1 1 1 . Unknown Exits Taken . | . . . . . . . . . . . . . . . . . . . . . . . . . . . . . . Scrap Searched 2 | . . . . 1 . 1 . . . . . . . . . . . . . . . . . . . . . . . Spaces Dug 269 | . . . . . . . . . . . . . . . 4 . . . 3 . 1 . . . . . 32 81 148 Terrain Destroyed 2707 | . . 30 32 52 . 15 17 11 23 13 . . 8 5 76 3 25 . 122 . 22 . . . 40 . 562 794 857 Melee . | . . . . . . . . . . . . . . . . . . . . . . . . . . . . . . Projectile 55 | . . . . . . . . . . . . . . . 1 . . . 3 . 2 . . . 11 . 11 1 26 AOE 2651 | . . 30 32 52 . 15 17 11 23 13 . . 8 5 75 3 25 . 119 . 20 . . . 29 . 551 792 831 Terrain Rammed . | . . . . . . . . . . . . . . . . . . . . . . . . . . . . . . Walls Destroyed . | . . . . . . . . . . . . . . . . . . . . . . . . . . . . . . Machines Disabled . | . . . . . . . . . . . . . . . . . . . . . . . . . . . . . . Actions | -11 -10 -10 -9 -9 -9 -8 -8 -8 -8 -8 -7 -7 -7 -7 -6 -6 -6 -6 -5 -5 -4 -4 -4 -4 -4 -3 -3 -2 -1 --------- Run | Yrd Mat Min Mat Min Exi Min Mat Gar Mat Gar Fac Was Fac Gar Fac Gar Fac Gar Fac Gar Fac Ext Cet Arc Hub Res Tes Res Acc Total 27760 | 73 887 614 1796 689 333 662 1100 666 481 1056 173 129 1067 942 1806 1119 1770 1036 1894 959 2112 539 196 427 1021 443 936 1063 1771 Wait 3529 | 1 166 67 126 55 . 81 242 1 29 109 . 8 59 27 342 23 358 279 322 28 451 40 1 374 115 82 7 75 61 Move 19850 | 58 632 525 1506 594 328 536 731 571 380 798 166 107 890 749 1254 942 1193 641 1266 768 1341 429 149 40 565 327 603 538 1223 Hop 1 | . . . . . . . . . . . . . . . 1 . . . . . . . . . . . . . . Pick Up 89 | 1 3 2 11 4 . 2 4 2 . 1 . . 4 1 3 6 3 . 4 . 7 . . . 2 1 9 10 9 Fast Attach 200 | 7 6 . 10 2 . . 6 4 . 4 2 1 14 3 19 4 17 2 9 2 17 2 2 . 6 7 21 19 14 Attach 21 | . . . 1 . . . 1 . . . . . . . 3 1 2 . 2 . 4 . . . . . 2 4 1 Detach 13 | . 2 . . . . . 1 . . . . . 1 . 2 . 3 . 2 . 1 . . . . 1 . . . Swap 136 | 2 3 2 9 4 1 1 10 2 . 1 2 1 6 4 12 6 10 2 12 5 5 7 2 . 7 2 5 4 9 Drop 229 | . 5 1 21 8 . 1 10 5 . 5 3 1 13 3 20 8 13 2 10 2 21 2 2 . 9 6 26 11 21 Fire 2295 | 4 44 15 72 16 . 29 56 54 43 81 . 6 50 40 87 89 89 47 183 59 186 29 19 7 273 10 197 276 234 Melee 99 | . . . . 1 4 . 4 1 4 3 . 5 8 . 20 3 15 3 14 6 1 2 . . . 3 2 . . Ram 3 | . . . . . . . . . . . . . . . . . 1 . 1 . . . . . . . 1 . . Kick . | . . . . . . . . . . . . . . . . . . . . . . . . . . . . . . Crush . | . . . . . . . . . . . . . . . . . . . . . . . . . . . . . . Escape Stasis 277 | . . . . . . . . . . 24 . . 8 32 . . . 38 . 56 . 24 . . . . 19 38 38 Rewire 46 | . . . . . . . . 1 . . . . . 10 . . 1 . . 7 . . . . 8 . 1 18 . Trap 52 | . 6 . . . . . 16 . 8 . . . 1 1 3 . 13 . 4 . . . . . . . . . . Miscellaneous 920 | . 20 2 40 5 . 12 19 25 17 30 . . 13 72 40 37 52 22 65 26 78 4 21 6 36 4 43 70 161 Route ------- -11/Scrapyard -10/Materials (discovered 4 exits: *Mat x3 / *Min) -10/Mines (discovered 2 exits: *Mat x2) -9/Materials (discovered 7 exits: *Mat x3 / *Min x2 / *Sto x2) -9/Mines (discovered 3 exits: *Mat x2 / *Exi) -9/Exiles -8/Mines (discovered 2 exits: *Mat x2) -8/Materials (discovered 4 exits: *Fac x3 / Gar) -8/Garrison (discovered 3 exits: *Mat x3) -8/Materials (discovered 3 exits: *Fac x2 / Gar) -8/Garrison (discovered 3 exits: *Fac x3) -7/Factory -7/Waste -7/Factory (discovered 2 exits: *Fac / Gar) -7/Garrison (discovered 3 exits: *Fac x3) -6/Factory (discovered 5 exits: *Fac / Low x2 / Gar / Gar) -6/Garrison (discovered 3 exits: *Fac x3) -6/Factory (discovered 3 exits: *Fac / *Low / Gar) -6/Garrison (discovered 4 exits: *Fac x3 / *Fac) -5/Factory (discovered 3 exits: *Fac x2 / Gar) -5/Garrison (discovered 3 exits: *Fac x3) -4/Factory (discovered 6 exits: *Res x3 / *Upp x2 / *Ext) -4/Extension (discovered 3 exits: *Res x2 / *Cet) -4/Cetus (discovered 2 exits: *Res / *Arc) -4/Archives (discovered 3 exits: Res / *Hub x2) -4/Hub_04(d) (discovered 4 exits: *Res x4) -3/Research (discovered 2 exits: *Tes x2) -3/Testing -2/Research -1/Access To Epsilon Eridani History --------- Turn | Location | Event 2 | -11/Scrapyard | Upgraded with Power slot (x1) 2 | -11/Scrapyard | Upgraded with Propulsion slot (x1) 2 | -11/Scrapyard | Upgraded with Utility slot (x3) 2 | -11/Scrapyard | Upgraded with Weapon slot (x1) 9 | -11/Scrapyard | Identified exit to Materials 9 | -11/Scrapyard | Discovered exit to Materials (range 16) 89 | -11/Scrapyard | Entered Materials 298 | -10/Materials | Identified exit to Materials 298 | -10/Materials | Discovered exit to Materials (range 15) 308 | -10/Materials | Build established: Hacker-Mutant 389 | -10/Materials | Identified exit to Mines 389 | -10/Materials | Discovered exit to Mines (range 10) 454 | -10/Materials | Discovered exit to Materials (range 9) 569 | -10/Materials | Reached level 2 748 | -10/Materials | Discovered exit to Materials (range 15) 951 | -10/Materials | Upgraded with Weapon slot (x1) 994 | -10/Materials | Entered Mines 996 | -10/Mines | Reached level 3 1155 | -10/Mines | Discovered exit to Materials (range 11) 1162 | -10/Mines | Received a Rocket Launcher from a helpful Derelict 1265 | -10/Mines | Discovered exit to Materials (range 8) 1284 | -10/Mines | Build established: Hacker-Skirmisher 1572 | -10/Mines | Entered Materials 1574 | -9/Materials | Reached level 4 1579 | -9/Materials | Identified exit to Mines 1579 | -9/Materials | Identified exit to Storage 1706 | -9/Materials | Identified exit to Materials 1741 | -9/Materials | Reached level 5 2032 | -9/Materials | Reached level 6 2690 | -9/Materials | Reached level 7 2839 | -9/Materials | Upgraded with Power slot (x2) 2839 | -9/Materials | Upgraded with Weapon slot (x1) 3150 | -9/Materials | Build established: Hacker-Tank 3282 | -9/Materials | Reached level 8 3411 | -9/Materials | Upgraded with Propulsion slot (x1) 3509 | -9/Materials | Entered Mines 3588 | -9/Mines | Met a Derelict shopkeep closing up shop 3594 | -9/Mines | Found Powered Armor 3712 | -9/Mines | YI-UF0 nonchalantly dropped a Grenade Launcher on the ground 3724 | -9/Mines | Murdered YI-UF0 3724 | -9/Mines | Destroyed YI-UF0 3731 | -9/Mines | Found Corrupted YI-UF0's Bottomless Matter Pit 3761 | -9/Mines | Discovered exit to Materials (range 13) 3767 | -9/Mines | Received a Mining Laser from a helpful Derelict 3974 | -9/Mines | Discovered exit to Materials (range 6) 3984 | -9/Mines | Identified exit to Exiles 3984 | -9/Mines | Discovered exit to Exiles (range 11) 3991 | -9/Mines | Deemed a non-threat by the Exiles lab entrance 4291 | -9/Mines | Entered Exiles 4319 | -9/Exiles | Met 8R-AWN 4337 | -9/Exiles | Met EX-HEX 4371 | -9/Exiles | Met EX-BIN 4406 | -9/Exiles | Met EX-DEC 4436 | -9/Exiles | Learned location of Zion (-6) 4518 | -9/Exiles | Aligned with FarCom system 4519 | -9/Exiles | Given EX-Vault access code 4545 | -9/Exiles | Opened EX-Vault 4572 | -9/Exiles | Warned to stay clear of 0b10 Research branches 4653 | -9/Exiles | Identified exit to Mines 4653 | -9/Exiles | Discovered exit to Mines (range 10) 4663 | -9/Exiles | Entered Mines 4686 | -8/Mines | Discovered exit to Materials (range 13) 4699 | -8/Mines | Reached level 9 4949 | -8/Mines | Build established: Hacker-Skirmisher 5243 | -8/Mines | Discovered exit to Materials (range 5) 5442 | -8/Mines | Entered Materials 5444 | -8/Materials | Reached level 10 5455 | -8/Materials | Identified exit to Factory 5519 | -8/Materials | Upgraded with Power slot (x2) 5624 | -8/Materials | Reached level 11 5853 | -8/Materials | Build established: Hacker-Assassin 6104 | -8/Materials | Reached level 12 6159 | -8/Materials | Identified exit to Garrison 6295 | -8/Materials | Repaired Broken Powered Armor 6372 | -8/Materials | Repaired Broken Adv. EMP Blaster 6721 | -8/Materials | Entered Garrison 6839 | -8/Garrison | Installed Relay Interface Framework 6922 | -8/Garrison | Triggered checkpoint 6942 | -8/Garrison | Learned Materials security intel 6955 | -8/Garrison | Garrison Relay disabled 7010 | -8/Garrison | Identified exit to Materials 7010 | -8/Garrison | Discovered exit to Materials (range 84) 7010 | -8/Garrison | Discovered exit to Materials (range 45) 7010 | -8/Garrison | Discovered exit to Materials (range 62) 7070 | -8/Garrison | Triggered checkpoint 7070 | -8/Garrison | Triggered checkpoint 7144 | -8/Garrison | Triggered checkpoint 7176 | -8/Garrison | Expanded RIF knowledge: Program Shield 7194 | -8/Garrison | Garrison Relay disabled 7194 | -8/Garrison | Reached level 13 7274 | -8/Garrison | Triggered checkpoint 7326 | -8/Garrison | Triggered checkpoint 7407 | -8/Garrison | Spotted B-75 Beast 7446 | -8/Garrison | Destroyed B-75 Beast 7501 | -8/Garrison | Upgraded with Utility slot (x1) 7552 | -8/Garrison | Entered Materials 7821 | -8/Materials | Discovered exit to Factory (range 9) 8111 | -8/Materials | Discovered exit to Factory (range 11) 8144 | -8/Materials | Garrison activated, responded to threat 8211 | -8/Materials | Identified exit to Garrison 8211 | -8/Materials | Entered Garrison 8260 | -8/Garrison | Triggered checkpoint 8339 | -8/Garrison | Expanded RIF knowledge: Structural Interface 8358 | -8/Garrison | Garrison Relay disabled 8716 | -8/Garrison | Triggered checkpoint 8746 | -8/Garrison | Discovered exit to Factory (range 2) 8856 | -8/Garrison | Triggered checkpoint 8913 | -8/Garrison | Discovered exit to Factory (range 10) 9088 | -8/Garrison | Triggered checkpoint 9110 | -8/Garrison | Reached level 14 9287 | -8/Garrison | Garrison Relay disabled 9290 | -8/Garrison | Garrison Relay disabled 9302 | -8/Garrison | Upgraded with Power slot (x1) 9479 | -8/Garrison | Discovered exit to Factory (range 5) 9536 | -8/Garrison | Triggered checkpoint 9632 | -8/Garrison | Entered Factory 9634 | -7/Factory | Reached level 15 9847 | -7/Factory | Sucked down chute 9847 | -7/Factory | Entered Waste 9848 | -7/Waste | Met a frightened Derelict 9870 | -7/Waste | Spotted C-40 Crusher 9884 | -7/Waste | Spotted C-40 Crusher 9915 | -7/Waste | Spotted C-40 Crusher 9920 | -7/Waste | Spotted C-40 Crusher 9937 | -7/Waste | Spotted C-40 Crusher 9953 | -7/Waste | Spotted C-40 Crusher 9989 | -7/Waste | Identified exit to Factory 9989 | -7/Waste | Discovered exit to Factory (range 12) 10007 | -7/Waste | Build established: Wizard-Assassin 10016 | -7/Waste | Entered Factory 10644 | -7/Factory | Identified exit to Factory 10644 | -7/Factory | Discovered exit to Factory (range 6) 10838 | -7/Factory | Repaired Broken Lrn. Proton Cannon 11020 | -7/Factory | Noticed a derelict Sapper rigging charges 11111 | -7/Factory | Cargo convoy interrupted 11176 | -7/Factory | Found Prototype Device 11176 | -7/Factory | Identified Adv. EM Disruption Field 11351 | -7/Factory | Identified exit to Garrison 11357 | -7/Factory | Garrison activated, responded to threat 11381 | -7/Factory | Entered Garrison 11381 | -7/Garrison | Accompanied by 2 allies 11383 | -7/Garrison | Reached level 16 11434 | -7/Garrison | Triggered checkpoint 11547 | -7/Garrison | Triggered checkpoint 11548 | -7/Garrison | Triggered checkpoint 11549 | -7/Garrison | Triggered checkpoint 11589 | -7/Garrison | Core integrity fell below 50% 11640 | -7/Garrison | Destroyed 8 combat bots 11676 | -7/Garrison | Build established: Wizard-Tank 11696 | -7/Garrison | Discovered exit to Factory (range 10) 11749 | -7/Garrison | Garrison Relay disabled 11946 | -7/Garrison | Heavy support dispatched to Factory 11953 | -7/Garrison | H-XX Assembler disabled 12022 | -7/Garrison | Triggered checkpoint 12126 | -7/Garrison | Discovered exit to Factory (range 12) 12196 | -7/Garrison | Triggered checkpoint 12222 | -7/Garrison | Garrison Relay disabled 12364 | -7/Garrison | Triggered checkpoint 12411 | -7/Garrison | Found embedded Infiltrators 12460 | -7/Garrison | Triggered checkpoint 12489 | -7/Garrison | Garrison Relay disabled 12520 | -7/Garrison | Expanded RIF knowledge: Watcher Feeds 12641 | -7/Garrison | Phase Generator disabled 12659 | -7/Garrison | Learned Factory security intel 12692 | -7/Garrison | Discovered exit to Factory (range 3) 12696 | -7/Garrison | Entered Factory 12696 | -6/Factory | Accompanied by 3 allies 12698 | -6/Factory | Reached level 17 12841 | -6/Factory | Fabricated Adv. Shield Generator (x2) 12919 | -6/Factory | Fabricated Hyb. Antimatter Reactor (x2) 12989 | -6/Factory | Fabricated Hyb. Antimatter Reactor (x2) 13014 | -6/Factory | Build established: Wizard-Skirmisher 13023 | -6/Factory | Reached level 18 13099 | -6/Factory | Identified exit to Factory 13099 | -6/Factory | Discovered exit to Factory (range 140) 13213 | -6/Factory | P-60 Hacker assimilated allied 5N-JWT(x) 13227 | -6/Factory | Spotted B-75 Beast 13247 | -6/Factory | Destroyed B-75 Beast 13275 | -6/Factory | Garrison activated, responded to threat 13345 | -6/Factory | Build established: Wizard-Assassin 13345 | -6/Factory | Identified exit to Garrison 13411 | -6/Factory | Upgraded with Propulsion slot (x1) 13825 | -6/Factory | Identified exit to Lower Caves 14402 | -6/Factory | Cargo convoy interrupted 14417 | -6/Factory | Found Prototype Device 14417 | -6/Factory | Identified Exp. ECM Suite 14446 | -6/Factory | Reached level 19 14702 | -6/Factory | Upgraded with Power slot (x1) 14962 | -6/Factory | Fabricated H-66 Slayer (x2) 15068 | -6/Factory | Identified exit to Garrison 15076 | -6/Factory | Entered Garrison 15076 | -6/Garrison | Accompanied by 2 allies 15252 | -6/Garrison | Triggered checkpoint 15285 | -6/Garrison | Garrison Relay disabled 15316 | -6/Garrison | Expanded RIF knowledge: Autooverride 15362 | -6/Garrison | Triggered checkpoint 15422 | -6/Garrison | Build established: Wizard-Tank 15445 | -6/Garrison | Identified exit to Factory 15445 | -6/Garrison | Discovered exit to Factory (range 10) 15464 | -6/Garrison | Found embedded Infiltrators 15478 | -6/Garrison | Triggered checkpoint 15500 | -6/Garrison | Reached level 20 15539 | -6/Garrison | Garrison Relay disabled 15628 | -6/Garrison | Triggered checkpoint 15700 | -6/Garrison | Spotted B-75 Beast 15812 | -6/Garrison | Destroyed B-75 Beast 15936 | -6/Garrison | Discovered exit to Factory (range 16) 16042 | -6/Garrison | Triggered checkpoint 16090 | -6/Garrison | Destroyed 7 combat bots 16104 | -6/Garrison | Spotted B-75 Beast 16117 | -6/Garrison | Destroyed B-75 Beast 16124 | -6/Garrison | Spotted B-75 Beast 16145 | -6/Garrison | Destroyed B-75 Beast 16187 | -6/Garrison | Found Imp. Powered Armor 16214 | -6/Garrison | Discovered exit to Factory (range 7) 16246 | -6/Garrison | Garrison Relay disabled 16329 | -6/Garrison | Garrison Relay disabled 16332 | -6/Garrison | Triggered checkpoint 16440 | -6/Garrison | Triggered checkpoint 16596 | -6/Garrison | Entered Factory 17022 | -6/Factory | Build established: Wizard-Assassin 17492 | -6/Factory | Cargo convoy interrupted 17525 | -6/Factory | Found Prototype Launcher 17525 | -6/Factory | Identified Tesla Bomb Launcher 17651 | -6/Factory | Fabricated Com. HERF Cannon (x1) 17726 | -6/Factory | Fabricated Com. HERF Cannon (x1) 17799 | -6/Factory | Reached level 21 17828 | -6/Factory | Upgraded with Power slot (x1) 17880 | -6/Factory | Discovered exit to Lower Caves (range 8) 17921 | -6/Factory | Garrison activated, responded to threat 17956 | -6/Factory | Build established: Wizard-Tank 18290 | -6/Factory | Discovered exit to Factory (range 11) 18470 | -6/Factory | Build established: Wizard-Assassin 18879 | -6/Factory | Garrison activated, responded to threat 18982 | -6/Factory | Build established: Wizard-Tank 18996 | -6/Factory | Identified exit to Garrison 18996 | -6/Factory | Entered Garrison 19044 | -6/Garrison | Expanded RIF knowledge: Patrol Navigation 19065 | -6/Garrison | Garrison Relay disabled 19577 | -6/Garrison | Rescued a captive Derelict 19585 | -6/Garrison | Rescued a captive Derelict 19597 | -6/Garrison | Triggered checkpoint 19657 | -6/Garrison | Discovered exit to Factory (range 16) 19686 | -6/Garrison | Garrison Relay disabled 19780 | -6/Garrison | Garrison Relay disabled 19786 | -6/Garrison | Triggered checkpoint 19811 | -6/Garrison | Identified exit to Factory 19811 | -6/Garrison | Discovered exit to Factory (range 3) 19904 | -6/Garrison | Triggered checkpoint 19904 | -6/Garrison | Triggered checkpoint 19911 | -6/Garrison | Triggered checkpoint 19922 | -6/Garrison | Triggered checkpoint 19955 | -6/Garrison | Destroyed 7 combat bots 19956 | -6/Garrison | Lost 4 allies 20022 | -6/Garrison | Reached level 22 20045 | -6/Garrison | Discovered exit to Factory (range 11) 20053 | -6/Garrison | Triggered checkpoint 20139 | -6/Garrison | Garrison Relay disabled 20185 | -6/Garrison | Spotted B-75 Beast 20199 | -6/Garrison | Destroyed B-75 Beast 20215 | -6/Garrison | Garrison Relay disabled 20314 | -6/Garrison | Discovered exit to Factory (range 62) 20314 | -6/Garrison | Discovered exit to Factory (range 47) 20314 | -6/Garrison | Discovered exit to Factory (range 32) 20314 | -6/Garrison | Discovered exit to Factory (range 67) 20408 | -6/Garrison | Entered Factory 20408 | -5/Factory | Accompanied by 1 ally 20500 | -5/Factory | Identified exit to Factory 20500 | -5/Factory | Discovered exit to Factory (range 21) 21008 | -5/Factory | First assault squad dispatched 21148 | -5/Factory | Destroyed 7 combat bots 21268 | -5/Factory | Reached level 23 21290 | -5/Factory | Cargo convoy interrupted 21317 | -5/Factory | Garrison activated, responded to threat 21410 | -5/Factory | Destroyed 12 combat bots 21493 | -5/Factory | Destroyed 7 combat bots 21555 | -5/Factory | Destroyed 8 combat bots 21676 | -5/Factory | Upgraded with Power slot (x1) 21889 | -5/Factory | Discovered exit to Factory (range 8) 22169 | -5/Factory | Fabricated Hyb. Antimatter Reactor (x2) 22360 | -5/Factory | Reached level 24 22840 | -5/Factory | Identified exit to Garrison 22927 | -5/Factory | Fabricated Hyb. Antimatter Reactor (x2) 23014 | -5/Factory | Fabricated H-66 Slayer? 23100 | -5/Factory | Fabricated H-66 Slayer (x2) 23117 | -5/Factory | Entered Garrison 23117 | -5/Garrison | Accompanied by 4 allies 23148 | -5/Garrison | Expanded RIF knowledge: Autoassimilate 23178 | -5/Garrison | Triggered checkpoint 23219 | -5/Garrison | Garrison Relay disabled 23374 | -5/Garrison | Triggered checkpoint 23491 | -5/Garrison | Garrison Relay disabled 23566 | -5/Garrison | Discovered exit to Factory (range 8) 23646 | -5/Garrison | Triggered checkpoint 23682 | -5/Garrison | Triggered checkpoint 23803 | -5/Garrison | Garrison Relay disabled 23971 | -5/Garrison | Discovered exit to Factory (range 11) 24044 | -5/Garrison | Triggered checkpoint 24132 | -5/Garrison | Discovered exit to Factory (range 11) 24138 | -5/Garrison | Triggered checkpoint 24161 | -5/Garrison | Learned Factory security intel 24184 | -5/Garrison | Triggered checkpoint 24236 | -5/Garrison | Garrison Relay disabled 24308 | -5/Garrison | Triggered checkpoint 24492 | -5/Garrison | Entered Factory 24492 | -4/Factory | Accompanied by 4 allies 24494 | -4/Factory | Reached level 25 24719 | -4/Factory | Garrison activated, responded to threat 24741 | -4/Factory | Upgraded with Utility slot (x2) 24910 | -4/Factory | Spotted B-86 Titan 24927 | -4/Factory | Destroyed B-86 Titan 24972 | -4/Factory | Build established: Wizard-Skirmisher 24992 | -4/Factory | First assault squad dispatched 25021 | -4/Factory | Fabricated Imp. Plasma Cutter? 25117 | -4/Factory | Identified exit to Garrison 25160 | -4/Factory | Reached level 26 25167 | -4/Factory | Cargo convoy interrupted 25170 | -4/Factory | Garrison activated, responded to threat 25194 | -4/Factory | Destroyed 9 combat bots 25245 | -4/Factory | Destroyed 7 combat bots 25390 | -4/Factory | Identified exit to Research 25390 | -4/Factory | Discovered exit to Research (range 15) 25478 | -4/Factory | Build established: Wizard-Assassin 25502 | -4/Factory | Fabricated Com. HERF Cannon (x1) 25546 | -4/Factory | Identified exit to Upper Caves 25546 | -4/Factory | Discovered exit to Upper Caves (range 18) 25779 | -4/Factory | Identified exit to Extension 25779 | -4/Factory | Discovered exit to Extension (range 14) 25819 | -4/Factory | Build established: Wizard-Skirmisher 25895 | -4/Factory | Fabricated Hyb. Antimatter Reactor (x2) 25971 | -4/Factory | Discovered exit to Research (range 17) 26118 | -4/Factory | Discovered exit to Research (range 37) 26659 | -4/Factory | Fabricated Adv. Powered Armor? 26753 | -4/Factory | Local machine network offline 26900 | -4/Factory | Discovered exit to Upper Caves (range 21) 26926 | -4/Factory | Spotted B-86 Titan 26945 | -4/Factory | Destroyed B-86 Titan 27091 | -4/Factory | Reached level 27 27184 | -4/Factory | Destroyed 15 combat bots 27274 | -4/Factory | Entered Extension 27335 | -4/Extension | Identified exit to Cetus 27462 | -4/Extension | Rescued a captive Derelict 27462 | -4/Extension | Rescued a captive Derelict 27570 | -4/Extension | Rescued a captive Derelict 27633 | -4/Extension | Rescued a captive Derelict 27633 | -4/Extension | Rescued a captive Derelict 27636 | -4/Extension | Spotted B-86 Titan 27648 | -4/Extension | Spotted B-86 Titan 27670 | -4/Extension | Discovered exit to Research (range 10) 27678 | -4/Extension | Destroyed B-86 Titan 27692 | -4/Extension | Destroyed B-86 Titan 27707 | -4/Extension | Lost 5 allies 27750 | -4/Extension | Rescued A7 27798 | -4/Extension | Rescued a captive Derelict 27961 | -4/Extension | Discovered exit to Research (range 10) 27973 | -4/Extension | Entered Cetus 27973 | -4/Cetus | Accompanied by 2 allies (A7) 27978 | -4/Cetus | Acquired a Cetus Manufacturing Module code from A7 27988 | -4/Cetus | Spotted Cetus Guard 27988 | -4/Cetus | Spotted Cetus Guard 27992 | -4/Cetus | Destroyed Cetus Guard 27997 | -4/Cetus | Allies destroyed Cetus Guard 27998 | -4/Cetus | Destroyed Cetus Guard 27999 | -4/Cetus | Spotted Cetus Guard 28001 | -4/Cetus | Destroyed Cetus Guard 28043 | -4/Cetus | Local machine network offline 28117 | -4/Cetus | Escorted A7 to Cetus Mainframe 28134 | -4/Cetus | Identified exit to Archives 28134 | -4/Cetus | Discovered exit to Archives (range 17) 28154 | -4/Cetus | Discovered exit to Research (range 27) 28158 | -4/Cetus | Spotted Cetus Guard 28160 | -4/Cetus | Spotted Cetus Guard 28164 | -4/Cetus | Destroyed Cetus Guard 28169 | -4/Cetus | Destroyed Cetus Guard 28169 | -4/Cetus | Allies destroyed Cetus Guard 28172 | -4/Cetus | Destroyed Cetus Guard 28191 | -4/Cetus | Met Revision 17 28243 | -4/Cetus | Entered Archives 28243 | -4/Archives | Accompanied by 2 allies (A7) 28248 | -4/Archives | Received a hacking code to weaken MAIN.C 28270 | -4/Archives | Discovered exit to Research (range 18) 28665 | -4/Archives | Identified exit to Hub_04(d) 28665 | -4/Archives | Discovered exit to Hub_04(d) (range 20) 28667 | -4/Archives | Discovered exit to Hub_04(d) (range 18) 28690 | -4/Archives | Entered Hub_04(d) 28835 | -4/Hub_04(d) | Network Hub disabled 28860 | -4/Hub_04(d) | Spotted Lightning 28862 | -4/Hub_04(d) | Spotted Lightning 28876 | -4/Hub_04(d) | Spotted Lightning 28880 | -4/Hub_04(d) | Spotted Lightning 28887 | -4/Hub_04(d) | Spotted Lightning 28933 | -4/Hub_04(d) | Destroyed Lightning 28945 | -4/Hub_04(d) | Destroyed Lightning 28968 | -4/Hub_04(d) | Destroyed Lightning 28983 | -4/Hub_04(d) | Reached level 28 28995 | -4/Hub_04(d) | Found Prototype Device 28995 | -4/Hub_04(d) | Identified Exp. EM Disruption Field 29003 | -4/Hub_04(d) | Found Prototype Device 29003 | -4/Hub_04(d) | Identified Exp. Phase Shifter 29088 | -4/Hub_04(d) | Spotted Lightning 29093 | -4/Hub_04(d) | Spotted B-86 Titan 29107 | -4/Hub_04(d) | Destroyed B-86 Titan 29196 | -4/Hub_04(d) | Spotted Lightning 29197 | -4/Hub_04(d) | Network Hub disabled 29223 | -4/Hub_04(d) | Local machine network offline 29240 | -4/Hub_04(d) | Spotted Lightning 29297 | -4/Hub_04(d) | Destroyed Lightning 29309 | -4/Hub_04(d) | Destroyed Lightning 29314 | -4/Hub_04(d) | Found Prototype Energy Cannon 29314 | -4/Hub_04(d) | Identified EMDS 29326 | -4/Hub_04(d) | Destroyed Lightning 29445 | -4/Hub_04(d) | Spotted Lightning 29485 | -4/Hub_04(d) | Spotted Lightning 29512 | -4/Hub_04(d) | Destroyed Lightning 29514 | -4/Hub_04(d) | Spotted Lightning 29541 | -4/Hub_04(d) | Destroyed Lightning 29570 | -4/Hub_04(d) | Destroyed Lightning 29595 | -4/Hub_04(d) | Network Hub disabled 29769 | -4/Hub_04(d) | Spotted Lightning 29794 | -4/Hub_04(d) | Destroyed Lightning 29899 | -4/Hub_04(d) | Found EMDS 29910 | -4/Hub_04(d) | Destroyed Lightning 29925 | -4/Hub_04(d) | Network Hub disabled 30065 | -4/Hub_04(d) | Upgraded with Weapon slot (x1) 30114 | -4/Hub_04(d) | Entered Research 30114 | -3/Research | Accompanied by 1 ally 30125 | -3/Research | Identified exit to Testing 30305 | -3/Research | Found Prototype Device 30305 | -3/Research | Identified Exp. Thermal Shield 30314 | -3/Research | Revision forces began assault on 0b10 30346 | -3/Research | Reached level 29 30346 | -3/Research | Met up with Revision 17++ 30406 | -3/Research | Repaired Broken Adv. Powered Armor 30615 | -3/Research | Local machine network offline 30689 | -3/Research | Found Unknown Device 30689 | -3/Research | Identified Launcher Loader 30727 | -3/Research | Entered Testing 30727 | -3/Testing | Accompanied by 1 ally 30728 | -3/Testing | Maximum security lockdown engaged 30823 | -3/Testing | Spotted PD-P516YIKHHF 30834 | -3/Testing | Destroyed PD-P516YIKHHF 30917 | -3/Testing | Destroyed 21 combat bots 30982 | -3/Testing | Reached level 30 30999 | -3/Testing | Scanned by Researcher 31000 | -3/Testing | Destroyed Investigator 31034 | -3/Testing | Destroyed 17 combat bots 31120 | -3/Testing | Spotted Striker 31132 | -3/Testing | Destroyed Striker 31188 | -3/Testing | Destroyed 35 combat bots 31276 | -3/Testing | Build established: Wizard-Tank 31314 | -3/Testing | Spotted Executioner 31319 | -3/Testing | Spotted Executioner 31353 | -3/Testing | Destroyed Executioner 31355 | -3/Testing | Reached level 31 31360 | -3/Testing | Lost 3 allies 31367 | -3/Testing | Destroyed Executioner 31437 | -3/Testing | Destroyed 34 combat bots 31471 | -3/Testing | Spotted Striker 31514 | -3/Testing | Spotted Striker 31527 | -3/Testing | Spotted Alpha 7 31531 | -3/Testing | Destroyed Striker 31537 | -3/Testing | Destroyed Striker 31561 | -3/Testing | Destroyed Alpha 7 31561 | -3/Testing | Spotted Executioner 31563 | -3/Testing | Destroyed Executioner 31565 | -3/Testing | Sterilization system engaged 31565 | -3/Testing | Non-combat units ordered to evacuate 31590 | -3/Testing | Spotted Striker 31593 | -3/Testing | Spotted Striker 31598 | -3/Testing | Core integrity fell below 50% 31603 | -3/Testing | Destroyed Striker 31607 | -3/Testing | Destroyed Striker 31628 | -3/Testing | Destroyed 48 combat bots 31635 | -3/Testing | Stole the SGEMP Prototype 31665 | -3/Testing | Combat units ordered to evacuate 31678 | -3/Testing | Found Fusion Bomb Launcher 31729 | -3/Testing | Found Prototype Device 31729 | -3/Testing | Identified Exp. Sensor Array 31816 | -3/Testing | Found Prototype Protection 31816 | -3/Testing | Identified SHELL Armor 31819 | -3/Testing | Found Prototype Protection 31819 | -3/Testing | Identified Hvy. Regenerative Plating 31838 | -3/Testing | Identified exit to Research 31838 | -3/Testing | Discovered exit to Research (range 13) 31865 | -3/Testing | Ambient heat levels rising (+10) 31885 | -3/Testing | Found Prototype Energy Cannon 31885 | -3/Testing | Identified Disintegrator 31941 | -3/Testing | Found Prototype Energy Gun 31941 | -3/Testing | Identified Hyp. EM Gauss Rifle 31980 | -3/Testing | Found Prototype Ballistic Cannon 31980 | -3/Testing | Identified Omega Cannon 32015 | -3/Testing | Ambient heat levels rising (+10) 32111 | -3/Testing | Entered Research 32113 | -2/Research | Reached level 32 32159 | -2/Research | Spotted B-90 Cyclops 32227 | -2/Research | Destroyed B-90 Cyclops 32331 | -2/Research | Fabricated Hyb. Antimatter Reactor (x2) 32404 | -2/Research | Fabricated Hyb. Antimatter Reactor? 32411 | -2/Research | First assault squad dispatched 32491 | -2/Research | Core integrity fell below 50% 32524 | -2/Research | Core integrity fell below 20% 32560 | -2/Research | High security lockdown imminent 32590 | -2/Research | Garrison activated, responded to threat 32635 | -2/Research | Destroyed 11 combat bots 32640 | -2/Research | High security lockdown engaged 32769 | -2/Research | Build established: Wizard-Skirmisher 32851 | -2/Research | Local machine network offline 32851 | -2/Research | Spotted Investigator 32853 | -2/Research | Destroyed Investigator 32853 | -2/Research | Reached level 33 32904 | -2/Research | Destroyed 26 combat bots 32986 | -2/Research | Spotted Striker 32995 | -2/Research | Destroyed Striker 33016 | -2/Research | Destroyed 22 combat bots 33074 | -2/Research | Spotted Striker 33074 | -2/Research | Destroyed Striker 33107 | -2/Research | Destroyed 17 combat bots 33118 | -2/Research | Found Prototype Reactor 33118 | -2/Research | Identified Vortex Chain Reactor 33180 | -2/Research | Build established: Wizard-Tank 33180 | -2/Research | Spotted Executioner 33180 | -2/Research | Spotted Striker 33185 | -2/Research | Rewired Striker 33192 | -2/Research | Spotted Investigator 33195 | -2/Research | Destroyed Investigator 33218 | -2/Research | Destroyed Executioner 33222 | -2/Research | Reached level 34 33233 | -2/Research | Spotted Executioner 33233 | -2/Research | Spotted Striker 33234 | -2/Research | Spotted Striker 33234 | -2/Research | Spotted Striker 33239 | -2/Research | Destroyed Striker 33240 | -2/Research | Destroyed Executioner 33241 | -2/Research | Spotted Executioner 33241 | -2/Research | Destroyed Executioner 33241 | -2/Research | Destroyed Striker 33244 | -2/Research | Destroyed Striker 33266 | -2/Research | Destroyed 30 combat bots 33390 | -2/Research | Sterilization system engaged 33390 | -2/Research | Non-combat units ordered to evacuate 33433 | -2/Research | Spotted Striker 33433 | -2/Research | Spotted Striker 33464 | -2/Research | Destroyed Striker 33467 | -2/Research | Destroyed Striker 33468 | -2/Research | Spotted Executioner 33469 | -2/Research | Spotted Investigator 33470 | -2/Research | Destroyed Investigator 33484 | -2/Research | Destroyed Executioner 33490 | -2/Research | Combat units ordered to evacuate 33554 | -2/Research | Destroyed 52 combat bots 33673 | -2/Research | Found Mni. Smartbomb Launcher 33690 | -2/Research | Ambient heat levels rising (+10) 33730 | -2/Research | Identified exit to Access 33730 | -2/Research | Discovered exit to Access (range 6) 33748 | -2/Research | Entered Access 33749 | -1/Access | Core integrity fell below 50% 33750 | -1/Access | Reached level 35 33837 | -1/Access | Repaired Adv. Powered Armor 33998 | -1/Access | First assault squad dispatched 34082 | -1/Access | Destroyed 9 combat bots 34246 | -1/Access | High security lockdown imminent 34326 | -1/Access | High security lockdown engaged 34360 | -1/Access | Spotted B-99 Colossus 34416 | -1/Access | Garrison activated, responded to threat 34421 | -1/Access | Reached level 36 34572 | -1/Access | Spotted Investigator 34574 | -1/Access | Destroyed 10 combat bots 34580 | -1/Access | Destroyed Investigator 34660 | -1/Access | Destroyed 10 combat bots 34671 | -1/Access | Spotted Executioner 34671 | -1/Access | Spotted Executioner 34671 | -1/Access | Spotted Executioner 34672 | -1/Access | Spotted Executioner 34672 | -1/Access | Spotted Executioner 34674 | -1/Access | Destroyed Executioner 34675 | -1/Access | Destroyed Executioner 34676 | -1/Access | Destroyed Executioner 34682 | -1/Access | Destroyed Executioner 34691 | -1/Access | Destroyed Executioner 34712 | -1/Access | Destroyed 8 combat bots 34756 | -1/Access | Destroyed 16 combat bots 34830 | -1/Access | Destroyed 7 combat bots 34840 | -1/Access | Spotted Investigator 34843 | -1/Access | Spotted Striker 34843 | -1/Access | Spotted Executioner 34844 | -1/Access | Destroyed Investigator 34848 | -1/Access | Destroyed Executioner 34853 | -1/Access | Reached level 37 34881 | -1/Access | Spotted Investigator 34887 | -1/Access | Destroyed Investigator 34942 | -1/Access | Destroyed 23 combat bots 34947 | -1/Access | Spotted Executioner 34947 | -1/Access | Spotted Executioner 34947 | -1/Access | Spotted Striker 34955 | -1/Access | Destroyed Executioner 34957 | -1/Access | Destroyed Executioner 34961 | -1/Access | Sterilization system engaged 34961 | -1/Access | Destroyed Striker 34982 | -1/Access | Destroyed 11 combat bots 35028 | -1/Access | Spotted Executioner 35028 | -1/Access | Spotted Executioner 35031 | -1/Access | Destroyed Executioner 35039 | -1/Access | Destroyed Executioner 35068 | -1/Access | Destroyed 10 combat bots 35261 | -1/Access | Ambient heat levels rising (+10) 35282 | -1/Access | Spotted B-99 Colossus 35411 | -1/Access | Ambient heat levels rising (+10) 35561 | -1/Access | Ambient heat levels rising (+10) 35711 | -1/Access | Ambient heat levels rising (+10) 35861 | -1/Access | Ambient heat levels rising (+10) 36011 | -1/Access | Ambient heat levels rising (+10) 36161 | -1/Access | Ambient heat levels rising (+10) 36277 | -1/Access | Identified exit to Surface 36277 | -1/Access | Discovered exit to Surface (range 24) 36311 | -1/Access | Ambient heat levels rising (+10) 36346 | *** | Escaped! Last Messages --------------- 36011_ Acquired 95 matter. Phase Shifter melts. Wave Collapse Detector melts. 36104_ Acquired 88 matter. 36161_ ALERT: Ambient heat levels +10. 36277_ EXIT=FOUND: SURFACE 36294_ Triggered Gamma Bomb Trap. 36294_ A bubble of electromagnetic force engulfs the area. 36294_ Door malfunctions. 36296_ Triggered Gamma Bomb Trap. 36296_ A bubble of electromagnetic force engulfs the area. 36311_ ALERT: Ambient heat levels +10. 36314_ EMDS Slug penetrates Sealed Barrier. 36321_ Upgraded: Heat Dissipation (+42) 36334_ EMDS Slug penetrates Terminal. 36334_ Terminal disabled. 36337_ Sealed Barrier breached. [Achievement: Mad Max] Map ----- +----------------------------------------------------+ | ? """"" ???#?#?????????????????????????????????? | | """" # ?##??#???????????????????????????????? | | " ?# ####? ###???#??????????????????????? | | ###?##?#### #?#?# ###? ? ????????????????????? | | ####?###### ### ?? ? ???????????????? | | ### # #### ? ?? + ? ?? ???"?????????????? | | # ## #??### ### ? ? ? ??""????????????? | | ## # ### ######+### #? ?????????????????? | | # ? # # #? ?# ??"??"??????????? | | # ? ? # ? #? # ? """?"??????????? | | # # # # + ? ? ????????? | | # # ? ? ? ? ?? ?????????? | | ## # # # ? # ? ? ????? ?????? | | # # # ? # ###?######??????????? | | # + + # ? #?######?#???#??????? | | # # # ? # ##########??????????? | | # # #? # ? ##?#?#####??????????? | | ########## ?##########?####?#?##?####?#??#?? ??? | | ########## ################?#####?###?#?##?????? | | ########## #######"###############?####????? ??? | | ########## %"" """" """" ? ##??? ??? | | ########## """ """" ? """" BB ??? ? ??? | | ########## " """""" """" BB ? ?#??????? | | ########## " " " """? ? ???? ????? | | ########## " " "" "?"""? ? ?? ?? ???? | | ########## % @" " """" ? ??? | | ########?# " " " """" ? ?????????? | | # #####%% " """""" ""?" BB?? #??#????? | | #### ##### " ?""""?BB ???? ???? | | #### ##### " """" ?? ? ????? | | #### ##### #######"######?####?######?#?? ? ??? | | #### ##### #################?###########???????? | | ###########^ ############################?? ????? | | # # ###########################?????????? | | # # ########################?##??? ? ???? | | # / ##############?##########???????????? | | # # ########?###?##?##########?#??? ????? | | # # ################?#########???? ?????? | | # # ########################??#?????????? | | # #% # ###########????#???????? | | # # # ##########?#???#???????? | | ########### # ##########?????????????? | | ########### # ###########????????????? | | ####### # ####??####??##?????????? | | # ######?##?#????????????? | | " + #?######?#?????????????? | | %####### # #####??##??????????????? | | # ######## # #######?##?????????????? | | # ######## # ########?#?????????????? | | # #### ### # #?######?#?????????????? | +----------------------------------------------------+ Best States ------------- Heat Dissipation 133 Energy Generation 159 Energy Capacity 9340 Matter Stores 825 Matter Capacity 1800 Sight Range 18 Terrain Scan Range 24 Terrain Scan Density 410 Power Amplification 40 Additional Mass Support 16 EM Shielding 3 Corruption Block 20 Armor Coverage 600 Resistance: KI 55 Resistance: TH 55 Resistance: EX 45 Resistance: EM 100 Resistance: I 35 Resistance: S 35 Resistance: P 35 Weapon Cycling 25 Phase Shifting 20 Evasion (%) 60 Targeting Accuracy 5 Matter Filtering 50 Offensive Hacking 50 Defensive Hacking 20 Relay Coupler Types 1 Relay Coupler Value 132 Trap Extractor Capacity 6 Item Schematics ----------------- Wheel | -10/Materials | Hacked Arm. Wheel | -10/Materials | Hacked Transport Network Coupler | -10/Materials | Hacked Shield Generator | -9/Materials | Hacked Salvage Targeting Computer | -9/Materials | Hacked Cooling System | -9/Materials | Hacked Hvy. EM Pulse Gun | -9/Materials | Hacked Hacking Suite | -9/Materials | Hacked Imp. EM Shotgun | -9/Materials | Scanalyzed Datajack | -9/Materials | Scanalyzed Maul | -9/Materials | Extracted Cld. Ion Engine | -8/Materials | Hacked System Shield | -8/Materials | Hacked Cryofiber Web | -8/Materials | Hacked Com. Wheel | -8/Materials | Hacked Hardlight Generator | -8/Materials | Hacked Powered Armor | -8/Materials | Scanalyzed System Restoration Module | -8/Materials | Scanalyzed Adv. EMP Blaster | -8/Materials | Scanalyzed Hpw. Tractor Beam | -8/Materials | Scanalyzed Linear Gravjet | -7/Factory | Hacked Imp. Thermal Shield | -7/Factory | Hacked Lrn. Proton Cannon | -7/Factory | Scanalyzed Adv. System Restoration Module | -7/Factory | Scanalyzed Imp. Trap Extractor | -7/Factory | Scanalyzed Imp. EM Pulse Cannon | -7/Factory | Hacked Imp. Shield Generator | -7/Factory | Hacked Hyb. Deuterium Engine | -7/Garrison | Hacked Hyb. Antimatter Reactor | -6/Factory | Scanalyzed Cld. Plasma Cannon | -6/Factory | Scanalyzed HERF Cannon | -6/Factory | Scanalyzed Adv. Weapon Cycler | -6/Factory | Scanalyzed Corruption Screen | -6/Factory | Hacked Imp. Cryofiber Web | -6/Factory | Hacked Adv. Terrain Scanner | -6/Factory | Hacked Imp. Powered Armor | -6/Garrison | Hacked Adv. Hardlight Generator | -6/Factory | Hacked Antimatter Reactor | -6/Factory | Hacked Com. HERF Cannon | -6/Factory | Scanalyzed Adv. Variable Charge Gun | -6/Factory | Scanalyzed Adv. EM Disruption Field | -6/Factory | Scanalyzed Imp. Plasma Cutter | -6/Factory | Hacked Arm. Huge Wheel | -6/Factory | Hacked Cold Fusion Reactor | -6/Factory | Hacked Exp. Power Amplifier | -5/Factory | Scanalyzed Adv. Force Field | -5/Factory | Scanalyzed Tesla Bomb Launcher | -5/Factory | Scanalyzed Imp. Datajack | -5/Factory | Scanalyzed Adv. Recalibrator | -5/Factory | Hacked Centrium Heavy Treads | -5/Factory | Hacked Centrium Wheel | -5/Garrison | Hacked Fusion Bomb Launcher | -4/Factory | Hacked Rnf. Quantum Reactor | -4/Factory | Hacked Hvy. Antimatter Reactor | -4/Factory | Scanalyzed Particle Reactor | -4/Factory | Hacked Adv. Powered Armor | -4/Factory | Hacked Lrn. Terrain Scanner | -4/Extension | Hacked Adv. Cryofiber Web | -4/Extension | Hacked Quantum Reactor | -4/Extension | Hacked Hvy. Gauss Cannon | -4/Extension | Hacked Imp. Fusion Compressor | -4/Extension | Hacked Adv. Transmission Jammer | -4/Hub_04(d) | Hacked Exp. Terrain Scanner | -3/Research | Hacked Gamma Bomb Array | -3/Research | Hacked Hdn. Centrium Wheel | -3/Research | Hacked Adv. Heavy Siege Treads | -3/Research | Hacked Robot Schematics ------------------ M-13 Machinist | -10/Materials | Hacked O-16 Technician | -10/Materials | Hacked G-34 Mercenary | -10/Materials | Hacked A-02 Transporter | -9/Materials | Hacked Y-45 Defender | -9/Materials | Hacked I-25 Savior | -9/Materials | Hacked M-28 Smith | -7/Factory | Hacked H-66 Slayer | -6/Factory | Hacked H-55 Commando | -6/Factory | Hacked B-60 Warrior | -4/Extension | Hacked Fabricated ------------ Adv. Shield Generator | x2 | -6/Factory | Preloaded Hyb. Antimatter Reactor | x2 | -6/Factory Hyb. Antimatter Reactor | x2 | -6/Factory H-66 Slayer | x2 | -6/Factory Com. HERF Cannon | x1 | -6/Factory Com. HERF Cannon | x1 | -6/Factory Hyb. Antimatter Reactor | x2 | -5/Factory Hyb. Antimatter Reactor | x2 | -5/Factory H-66 Slayer | x2 | -5/Factory H-66 Slayer | x2 | -5/Factory Imp. Plasma Cutter | x2 | -4/Factory Com. HERF Cannon | x1 | -4/Factory Hyb. Antimatter Reactor | x2 | -4/Factory Adv. Powered Armor | x1 | -4/Factory Hyb. Antimatter Reactor | x2 | -2/Research Hyb. Antimatter Reactor | x2 | -2/Research Alien Tech Used ----------------- None Achievements -------------- Mad Max Challenges ------------ None RPGLIKE | -11 -10 -10 -9 -9 -9 -8 -8 -8 -8 -8 -7 -7 -7 -7 -6 -6 -6 -6 -5 -5 -4 -4 -4 -4 -4 -3 -3 -2 -1 --------- Run | Yrd Mat Min Mat Min Exi Min Mat Gar Mat Gar Fac Was Fac Gar Fac Gar Fac Gar Fac Gar Fac Ext Cet Arc Hub Res Tes Res Acc Levels Raised 36 | . 1 1 5 . . 1 3 1 . 1 1 . . 1 3 1 1 1 2 . 3 . . . 1 1 2 3 3 XP Earned 61005 | 6000 2835 750 7000 591 243 1650 3733 1453 774 1085 1049 97 1148 1407 3784 1917 1320 796 3037 1075 3510 393 392 146 771 1208 3940 4579 4322 XP Spent 55710 | 6000 800 750 5010 240 . 1250 3805 2900 . 2440 3300 . . 1750 3800 . 2600 . 2900 . 3700 . . . 1400 3000 3705 3750 2610 Upgrades 97 | 13 1 1 8 2 . 1 9 2 . 3 4 . . 1 4 . 1 . 1 . 2 . . . 1 2 18 14 9 Power Slot 9 | 1 . . 2 . . . 2 . . 1 . . . . 1 . 1 . 1 . . . . . . . . . . Propulsion Slot 3 | 1 . . 1 . . . . . . . . . . . 1 . . . . . . . . . . . . . . Utility Slot 6 | 3 . . . . . . . 1 . . . . . . . . . . . . 2 . . . . . . . . Weapon Slot 4 | 1 1 . 1 . . . . . . . . . . . . . . . . . . . . . 1 . . . . Core Integrity 24 | . . . . . . . 3 . . . . . . . . . . . . . . . . . . . 11 10 . Heat Dissipation 18 | . . . 3 2 . . 3 . . 2 . . . . . . . . . . . . . . . . 1 . 7 Inventory Capacity 8 | 2 . 1 1 . . 1 . 1 . . . . . 1 . . . . . . . . . . . 1 . . . Sight Range 2 | . . . . . . . . . . . . . . . 2 . . . . . . . . . . . . . . Terrain Scan Density 4 | 1 . . . . . . 1 . . . . . . . . . . . . . . . . . . . . . 2 Hack Attack % 5 | 2 . . . . . . . . . . 2 . . . . . . . . . . . . . . 1 . . . Hack Defense % 4 | 2 . . . . . . . . . . 2 . . . . . . . . . . . . . . . . . . KI Resistance % 4 | . . . . . . . . . . . . . . . . . . . . . . . . . . . 4 . . TH Resistance % 4 | . . . . . . . . . . . . . . . . . . . . . . . . . . . 2 2 . EX Resistance % 2 | . . . . . . . . . . . . . . . . . . . . . . . . . . . . 2 . Protomatter Created 20137 | . 251 . 853 38 . 119 332 265 222 544 . . 242 780 514 828 1011 481 1699 502 1681 77 258 81 1095 76 2433 2651 3104 Integrity Restored 16426 | . 312 22 470 50 . 207 259 464 278 474 . . 260 1112 837 613 800 340 1257 418 1433 72 258 118 409 63 902 1548 3450 Core 11560 | . 188 18 297 21 . 145 120 334 198 346 . . 257 698 512 386 501 225 788 315 1008 57 183 89 264 25 809 1548 2228 Parts 4866 | . 124 4 173 29 . 62 139 130 80 128 . . 3 414 325 227 299 115 469 103 425 15 75 29 145 38 93 . 1222 Protomatter Decayed 10805 | . 54 . 605 93 . 26 186 71 131 378 . . 76 418 167 302 527 656 725 395 1276 50 166 121 701 1356 339 337 1649 Game ------ Seed AccelerationAntigravSaw Manual? 0 Play Time 08:13:02 Cumulative 624.4 hours Start 2024.03.17 @ 08:43:24 End 2024.03.18 @ 22:12:59 Sessions 3 Manual Loads 0 Difficulty Explorer Special Mode Winter2019/RPGLIKE Game No. 234 Rogue 211 Adventurer 3 Explorer 20 Win Type 0 Total 14 Types 9/2/1/1/0/1/0/0/0 Lore% 88 Gallery% 95 Achievement% 82 Wizard Run 0 Options --------- Layout 2 ASCII 0 Keyboard 0 Movement Numpad Keybinds 0 Fullscreen 2 Font 24/Smallcaps Map View 50x44 Zoom Use 0% Tactical HUD 1 Map Filters NONE Filters NONE Steam X RUN: 280b3b4c-fe01-462a-9dff-a6eed0949d46